Workbook

Sheet ConfInts
B1: Simulating Confidence Intervals
C3: This program generates 80 random confidence
C4: intervals based on repeated random samples
C5: drawn from a variety of population patterns
A7: Which population do you want? | D7: =IF(E7=TRUE, 1,IF(E8=TRUE, 2,IF(E9=TRUE,3,4))) -> 4 | E7: FALSE
E8: FALSE
E9: FALSE
E10: TRUE
A12: What is the confidence level? | D12: FALSE
D13: FALSE
D14: FALSE
D15: TRUE
A17: The mean and standard deviation | E17: m = | F17: =IF(pop=1,Sheet2!B2,IF(pop=2,Sheet2!E2,IF(pop=3,Sheet2!G2,Sheet2!I2))) -> 71.19
B18: of the sampling population are: | E18: s = | F18: =IF(pop=1,Sheet2!C3,IF(pop=2,Sheet2!F3,IF(pop=3,Sheet2!H3,Sheet2!J3))) -> 0.465
A20: =Sheet4!G28& " of 80, or "&TEXT(Sheet4!H27,"0.00%")&", of the "&TEXT(Sheet4!H24/100,"0%")&" confidence intervals based " -> 79 of 80, or 98.75%, of the 99% confidence intervals based
B21: ="on 80 samples of size 50 from the "&TEXT(pop_name,"")&" population" -> on 80 samples of size 50 from the skewed population
B22: contained the population mean m.
D25: -1
A29: Click each item below for suggestions and investigations
C30: Item 1
C31: Item 2
C32: Item 3
A36: To access/download all the DIGMath Apps for Statistics
A37: Click this link: | C37: DIGMath for Statistics and Probability
A39: Created by: Sheldon P. Gordon & Florence S. Gordon
A40: Farmingdale State College NYIT
A41: Development of this module was supported by the
A42: NSF's Division of Undergraduate Education
A43: under grants DUE-0310123 and DUE-0442160.

Sheet Sheet2
B1: Normal data | E1: Uniform data | G1: U-shaped | I1: Skewed data
A2: mu, sigma,n= | B2: 68.07 | E2: 68.47 | G2: 68.61 | I2: 71.19
B3: 2.762 | C3: =B3/SQRT(50) -> 0.3906057859 | E3: 4.162 | F3: =E3/SQRT(50) -> 0.5885956847 | G3: 4.801 | H3: =G3/SQRT(50) -> 0.6789639313 | I3: 3.291 | J3: =I3/SQRT(50) -> 0.4654176834
B4: 210 | E4: 424 | G4: 397 | I4: 410 | M4: 1
A5: 1 | B5: 61 | C5: 61 | D5: 4 | E5: 61 | F5: =COUNTIF(E$5:E$502,"=61") -> 23 | G5: 61 | H5: =COUNTIF(G$5:G$502,"=61") -> 18 | I5: 61 | J5: =COUNTIF(I$5:I$502,"=61") -> 3
A6: 2 | B6: 61 | C6: 62 | D6: 12 | E6: 61 | F6: =COUNTIF(E$5:E$502,"=62") -> 28 | G6: 61 | H6: =COUNTIF(G$5:G$502,"=62") -> 22 | I6: 61 | J6: =COUNTIF(I$5:I$502,"=62") -> 5
A7: 3 | B7: 62 | C7: 63 | D7: 6 | E7: 61 | F7: =COUNTIF(E$5:E$502,"=63") -> 19 | G7: 61 | H7: =COUNTIF(G$5:G$502,"=63") -> 35 | I7: 61 | J7: =COUNTIF(I$5:I$502,"=63") -> 6
A8: 4 | B8: 62 | C8: 64 | D8: 16 | E8: 61 | F8: =COUNTIF(E$5:E$502,"=64") -> 24 | G8: 61 | H8: =COUNTIF(G$5:G$502,"=64") -> 44 | I8: 62 | J8: =COUNTIF(I$5:I$502,"=64") -> 15
A9: 5 | B9: 62 | C9: 65 | D9: 28 | E9: 61 | F9: =COUNTIF(E$5:E$502,"=65") -> 25 | G9: 61 | H9: =COUNTIF(G$5:G$502,"=65") -> 36 | I9: 62 | J9: =COUNTIF(I$5:I$502,"=65") -> 11
A10: 6 | B10: 62 | C10: 66 | D10: 54 | E10: 61 | F10: =COUNTIF(E$5:E$502,"=66") -> 27 | G10: 61 | H10: =COUNTIF(G$5:G$502,"=66") -> 21 | I10: 62 | J10: =COUNTIF(I$5:I$502,"=66") -> 10
A11: 7 | B11: 62 | C11: 67 | D11: 60 | E11: 61 | F11: =COUNTIF(E$5:E$502,"=67") -> 21 | G11: 61 | H11: =COUNTIF(G$5:G$502,"=67") -> 7 | I11: 62 | J11: =COUNTIF(I$5:I$502,"=67") -> 15
A12: 8 | B12: 62 | C12: 68 | D12: 70 | E12: 61 | F12: =COUNTIF(E$5:E$502,"=68") -> 29 | G12: 61 | H12: =COUNTIF(G$5:G$502,"=68") -> 8 | I12: 62 | J12: =COUNTIF(I$5:I$502,"=68") -> 14
A13: 9 | B13: 63 | C13: 69 | D13: 56 | E13: 61 | F13: =COUNTIF(E$5:E$502,"=69") -> 34 | G13: 61 | H13: =COUNTIF(G$5:G$502,"=69") -> 9 | I13: 63 | J13: =COUNTIF(I$5:I$502,"=69") -> 23
A14: 10 | B14: 63 | C14: 70 | D14: 32 | E14: 61 | F14: =COUNTIF(E$5:E$502,"=70") -> 29 | G14: 61 | H14: =COUNTIF(G$5:G$502,"=70") -> 10 | I14: 63 | J14: =COUNTIF(I$5:I$502,"=70") -> 20
A15: 11 | B15: 63 | C15: 71 | D15: 28 | E15: 61 | F15: =COUNTIF(E$5:E$502,"=71") -> 44 | G15: 61 | H15: =COUNTIF(G$5:G$502,"=71") -> 24 | I15: 63 | J15: =COUNTIF(I$5:I$502,"=71") -> 54
A16: 12 | B16: 64 | C16: 72 | D16: 20 | E16: 61 | F16: =COUNTIF(E$5:E$502,"=72") -> 37 | G16: 61 | H16: =COUNTIF(G$5:G$502,"=72") -> 34 | I16: 63 | J16: =COUNTIF(I$5:I$502,"=72") -> 58
A17: 13 | B17: 64 | C17: 73 | D17: 18 | E17: 61 | F17: =COUNTIF(E$5:E$502,"=73") -> 28 | G17: 61 | H17: =COUNTIF(G$5:G$502,"=73") -> 45 | I17: 63 | J17: =COUNTIF(I$5:I$502,"=73") -> 60
A18: 14 | B18: 64 | C18: 74 | D18: 12 | E18: 61 | F18: =COUNTIF(E$5:E$502,"=74") -> 35 | G18: 61 | H18: =COUNTIF(G$5:G$502,"=74") -> 41 | I18: 63 | J18: =COUNTIF(I$5:I$502,"=74") -> 54
A19: 15 | B19: 64 | C19: 75 | D19: 4 | E19: 61 | F19: =COUNTIF(E$5:E$502,"=75") -> 21 | G19: 61 | H19: =COUNTIF(G$5:G$502,"=75") -> 43 | I19: 64 | J19: =COUNTIF(I$5:I$502,"=75") -> 62
A20: 16 | B20: 64 | E20: 61 | G20: 61 | I20: 64
A21: 17 | B21: 64 | E21: 61 | G21: 61 | I21: 64
A22: 18 | B22: 64 | E22: 61 | G22: 61 | I22: 64
A23: 19 | B23: 64 | E23: 61 | G23: 62 | I23: 64
A24: 20 | B24: 65 | E24: 61 | G24: 62 | I24: 64
A25: 21 | B25: 65 | E25: 61 | G25: 62 | I25: 64
A26: 22 | B26: 65 | E26: 61 | G26: 62 | I26: 64
A27: 23 | B27: 65 | E27: 61 | G27: 62 | I27: 64
A28: 24 | B28: 65 | E28: 62 | G28: 62 | I28: 64
A29: 25 | B29: 65 | E29: 62 | G29: 62 | I29: 64
A30: 26 | B30: 65 | E30: 62 | G30: 62 | I30: 64
A31: 27 | B31: 65 | E31: 62 | G31: 62 | I31: 64
A32: 28 | B32: 65 | E32: 62 | G32: 62 | I32: 64
A33: 29 | B33: 65 | E33: 62 | G33: 62 | I33: 64
A34: 30 | B34: 65 | E34: 62 | G34: 62 | I34: 65
A35: 31 | B35: 65 | E35: 62 | G35: 62 | I35: 65
A36: 32 | B36: 65 | E36: 62 | G36: 62 | I36: 65
A37: 33 | B37: 65 | E37: 62 | G37: 62 | I37: 65
A38: 34 | B38: 66 | E38: 62 | G38: 62 | I38: 65
A39: 35 | B39: 66 | E39: 62 | G39: 62 | I39: 65
A40: 36 | B40: 66 | E40: 62 | G40: 62 | I40: 65
A41: 37 | B41: 66 | E41: 62 | G41: 62 | I41: 65
A42: 38 | B42: 66 | E42: 62 | G42: 62 | I42: 65
A43: 39 | B43: 66 | E43: 62 | G43: 62 | I43: 65
A44: 40 | B44: 66 | E44: 62 | G44: 62 | I44: 65
A45: 41 | B45: 66 | E45: 62 | G45: 63 | I45: 66
A46: 42 | B46: 66 | E46: 62 | G46: 63 | I46: 66
A47: 43 | B47: 66 | E47: 62 | G47: 63 | I47: 66
A48: 44 | B48: 66 | E48: 62 | G48: 63 | I48: 66
A49: 45 | B49: 66 | E49: 62 | G49: 63 | I49: 66
A50: 46 | B50: 66 | E50: 62 | G50: 63 | I50: 66
A51: 47 | B51: 66 | E51: 62 | G51: 63 | I51: 66
A52: 48 | B52: 66 | E52: 62 | G52: 63 | I52: 66
A53: 49 | B53: 66 | E53: 62 | G53: 63 | I53: 66
A54: 50 | B54: 66 | E54: 62 | G54: 63 | I54: 66
A55: 51 | B55: 66 | E55: 62 | G55: 63 | I55: 67
A56: 52 | B56: 66 | E56: 63 | G56: 63 | I56: 67
A57: 53 | B57: 66 | E57: 63 | G57: 63 | I57: 67
A58: 54 | B58: 66 | E58: 63 | G58: 63 | I58: 67
A59: 55 | B59: 66 | E59: 63 | G59: 63 | I59: 67
A60: 56 | B60: 66 | E60: 63 | G60: 63 | I60: 67
A61: 57 | B61: 66 | E61: 63 | G61: 63 | I61: 67
A62: 58 | B62: 66 | E62: 63 | G62: 63 | I62: 67
A63: 59 | B63: 66 | E63: 63 | G63: 63 | I63: 67
A64: 60 | B64: 66 | E64: 63 | G64: 63 | I64: 67
A65: 61 | B65: 67 | E65: 63 | G65: 63 | I65: 67
A66: 62 | B66: 67 | E66: 63 | G66: 63 | I66: 67
A67: 63 | B67: 67 | E67: 63 | G67: 63 | I67: 67
A68: 64 | B68: 67 | E68: 63 | G68: 63 | I68: 67
A69: 65 | B69: 67 | E69: 63 | G69: 63 | I69: 67
A70: 66 | B70: 67 | E70: 63 | G70: 63 | I70: 68
A71: 67 | B71: 67 | E71: 63 | G71: 63 | I71: 68
A72: 68 | B72: 67 | E72: 63 | G72: 63 | I72: 68
A73: 69 | B73: 67 | E73: 63 | G73: 63 | I73: 68
A74: 70 | B74: 67 | E74: 63 | G74: 63 | I74: 68
A75: 71 | B75: 67 | E75: 64 | G75: 63 | I75: 68
A76: 72 | B76: 67 | E76: 64 | G76: 63 | I76: 68
A77: 73 | B77: 67 | E77: 64 | G77: 63 | I77: 68
A78: 74 | B78: 67 | E78: 64 | G78: 63 | I78: 68
A79: 75 | B79: 67 | E79: 64 | G79: 63 | I79: 68
A80: 76 | B80: 67 | E80: 64 | G80: 64 | I80: 68
A81: 77 | B81: 67 | E81: 64 | G81: 64 | I81: 68
A82: 78 | B82: 67 | E82: 64 | G82: 64 | I82: 68
A83: 79 | B83: 67 | E83: 64 | G83: 64 | I83: 68
A84: 80 | B84: 67 | E84: 64 | G84: 64 | I84: 69
A85: 81 | B85: 67 | E85: 64 | G85: 64 | I85: 69
A86: 82 | B86: 67 | E86: 64 | G86: 64 | I86: 69
A87: 83 | B87: 67 | E87: 64 | G87: 64 | I87: 69
A88: 84 | B88: 67 | E88: 64 | G88: 64 | I88: 69
A89: 85 | B89: 67 | E89: 64 | G89: 64 | I89: 69
A90: 86 | B90: 67 | E90: 64 | G90: 64 | I90: 69
A91: 87 | B91: 67 | E91: 64 | G91: 64 | I91: 69
A92: 88 | B92: 67 | E92: 64 | G92: 64 | I92: 69
A93: 89 | B93: 67 | E93: 64 | G93: 64 | I93: 69
A94: 90 | B94: 67 | E94: 64 | G94: 64 | I94: 69
A95: 91 | B95: 68 | E95: 64 | G95: 64 | I95: 69
A96: 92 | B96: 68 | E96: 64 | G96: 64 | I96: 69
A97: 93 | B97: 68 | E97: 64 | G97: 64 | I97: 69
A98: 94 | B98: 68 | E98: 64 | G98: 64 | I98: 69
A99: 95 | B99: 68 | E99: 65 | G99: 64 | I99: 69
A100: 96 | B100: 68 | E100: 65 | G100: 64 | I100: 69
A101: 97 | B101: 68 | E101: 65 | G101: 64 | I101: 69
A102: 98 | B102: 68 | E102: 65 | G102: 64 | I102: 69
A103: 99 | B103: 68 | E103: 65 | G103: 64 | I103: 69
A104: 100 | B104: 68 | E104: 65 | G104: 64 | I104: 69
A105: 101 | B105: 68 | E105: 65 | G105: 64 | I105: 69
A106: 102 | B106: 68 | E106: 65 | G106: 64 | I106: 69
A107: 103 | B107: 68 | E107: 65 | G107: 64 | I107: 70
A108: 104 | B108: 68 | E108: 65 | G108: 64 | I108: 70
A109: 105 | B109: 68 | E109: 65 | G109: 64 | I109: 70
A110: 106 | B110: 68 | E110: 65 | G110: 64 | I110: 70
A111: 107 | B111: 68 | E111: 65 | G111: 64 | I111: 70
A112: 108 | B112: 68 | E112: 65 | G112: 64 | I112: 70
A113: 109 | B113: 68 | E113: 65 | G113: 64 | I113: 70
A114: 110 | B114: 68 | E114: 65 | G114: 64 | I114: 70
A115: 111 | B115: 68 | E115: 65 | G115: 64 | I115: 70
A116: 112 | B116: 68 | E116: 65 | G116: 64 | I116: 70
A117: 113 | B117: 68 | E117: 65 | G117: 64 | I117: 70
A118: 114 | B118: 68 | E118: 65 | G118: 64 | I118: 70
A119: 115 | B119: 68 | E119: 65 | G119: 64 | I119: 70
A120: 116 | B120: 68 | E120: 65 | G120: 64 | I120: 70
A121: 117 | B121: 68 | E121: 65 | G121: 64 | I121: 70
A122: 118 | B122: 68 | E122: 65 | G122: 64 | I122: 70
A123: 119 | B123: 68 | E123: 65 | G123: 64 | I123: 70
A124: 120 | B124: 68 | E124: 66 | G124: 65 | I124: 70
A125: 121 | B125: 68 | E125: 66 | G125: 65 | I125: 70
A126: 122 | B126: 68 | E126: 66 | G126: 65 | I126: 70
A127: 123 | B127: 68 | E127: 66 | G127: 65 | I127: 71
A128: 124 | B128: 68 | E128: 66 | G128: 65 | I128: 71
A129: 125 | B129: 68 | E129: 66 | G129: 65 | I129: 71
A130: 126 | B130: 69 | E130: 66 | G130: 65 | I130: 71
A131: 127 | B131: 69 | E131: 66 | G131: 65 | I131: 71
A132: 128 | B132: 69 | E132: 66 | G132: 65 | I132: 71
A133: 129 | B133: 69 | E133: 66 | G133: 65 | I133: 71
A134: 130 | B134: 69 | E134: 66 | G134: 65 | I134: 71
A135: 131 | B135: 69 | E135: 66 | G135: 65 | I135: 71
A136: 132 | B136: 69 | E136: 66 | G136: 65 | I136: 71
A137: 133 | B137: 69 | E137: 66 | G137: 65 | I137: 71
A138: 134 | B138: 69 | E138: 66 | G138: 65 | I138: 71
A139: 135 | B139: 69 | E139: 66 | G139: 65 | I139: 71
A140: 136 | B140: 69 | E140: 66 | G140: 65 | I140: 71
A141: 137 | B141: 69 | E141: 66 | G141: 65 | I141: 71
A142: 138 | B142: 69 | E142: 66 | G142: 65 | I142: 71
A143: 139 | B143: 69 | E143: 66 | G143: 65 | I143: 71
A144: 140 | B144: 69 | E144: 66 | G144: 65 | I144: 71
A145: 141 | B145: 69 | E145: 66 | G145: 65 | I145: 71
A146: 142 | B146: 69 | E146: 66 | G146: 65 | I146: 71
A147: 143 | B147: 69 | E147: 66 | G147: 65 | I147: 71
A148: 144 | B148: 69 | E148: 66 | G148: 65 | I148: 71
A149: 145 | B149: 69 | E149: 66 | G149: 65 | I149: 71
A150: 146 | B150: 69 | E150: 66 | G150: 65 | I150: 71
A151: 147 | B151: 69 | E151: 67 | G151: 65 | I151: 71
A152: 148 | B152: 69 | E152: 67 | G152: 65 | I152: 71
A153: 149 | B153: 69 | E153: 67 | G153: 65 | I153: 71
A154: 150 | B154: 69 | E154: 67 | G154: 65 | I154: 71
A155: 151 | B155: 69 | E155: 67 | G155: 65 | I155: 71
A156: 152 | B156: 69 | E156: 67 | G156: 65 | I156: 71
A157: 153 | B157: 69 | E157: 67 | G157: 65 | I157: 71
A158: 154 | B158: 70 | E158: 67 | G158: 65 | I158: 71
A159: 155 | B159: 70 | E159: 67 | G159: 65 | I159: 71
A160: 156 | B160: 70 | E160: 67 | G160: 66 | I160: 71
A161: 157 | B161: 70 | E161: 67 | G161: 66 | I161: 71
A162: 158 | B162: 70 | E162: 67 | G162: 66 | I162: 71
A163: 159 | B163: 70 | E163: 67 | G163: 66 | I163: 71
A164: 160 | B164: 70 | E164: 67 | G164: 66 | I164: 71
A165: 161 | B165: 70 | E165: 67 | G165: 66 | I165: 71
A166: 162 | B166: 70 | E166: 67 | G166: 66 | I166: 71
A167: 163 | B167: 70 | E167: 67 | G167: 66 | I167: 71
A168: 164 | B168: 70 | E168: 67 | G168: 66 | I168: 71
A169: 165 | B169: 70 | E169: 67 | G169: 66 | I169: 71
A170: 166 | B170: 70 | E170: 67 | G170: 66 | I170: 71
A171: 167 | B171: 70 | E171: 67 | G171: 66 | I171: 71
A172: 168 | B172: 70 | E172: 68 | G172: 66 | I172: 71
A173: 169 | B173: 70 | E173: 68 | G173: 66 | I173: 71
A174: 170 | B174: 71 | E174: 68 | G174: 66 | I174: 71
A175: 171 | B175: 71 | E175: 68 | G175: 66 | I175: 71
A176: 172 | B176: 71 | E176: 68 | G176: 66 | I176: 71
A177: 173 | B177: 71 | E177: 68 | G177: 66 | I177: 71
A178: 174 | B178: 71 | E178: 68 | G178: 66 | I178: 71
A179: 175 | B179: 71 | E179: 68 | G179: 66 | I179: 71
A180: 176 | B180: 71 | E180: 68 | G180: 66 | I180: 71
A181: 177 | B181: 71 | E181: 68 | G181: 67 | I181: 72
A182: 178 | B182: 71 | E182: 68 | G182: 67 | I182: 72
A183: 179 | B183: 71 | E183: 68 | G183: 67 | I183: 72
A184: 180 | B184: 71 | E184: 68 | G184: 67 | I184: 72
A185: 181 | B185: 71 | E185: 68 | G185: 67 | I185: 72
A186: 182 | B186: 71 | E186: 68 | G186: 67 | I186: 72
A187: 183 | B187: 71 | E187: 68 | G187: 67 | I187: 72
A188: 184 | B188: 72 | E188: 68 | G188: 68 | I188: 72
A189: 185 | B189: 72 | E189: 68 | G189: 68 | I189: 72
A190: 186 | B190: 72 | E190: 68 | G190: 68 | I190: 72
A191: 187 | B191: 72 | E191: 68 | G191: 68 | I191: 72
A192: 188 | B192: 72 | E192: 68 | G192: 68 | I192: 72
A193: 189 | B193: 72 | E193: 68 | G193: 68 | I193: 72
A194: 190 | B194: 72 | E194: 68 | G194: 68 | I194: 72
A195: 191 | B195: 72 | E195: 68 | G195: 68 | I195: 72
A196: 192 | B196: 72 | E196: 68 | G196: 69 | I196: 72
A197: 193 | B197: 72 | E197: 68 | G197: 69 | I197: 72
A198: 194 | B198: 73 | E198: 68 | G198: 69 | I198: 72
A199: 195 | B199: 73 | E199: 68 | G199: 69 | I199: 72
A200: 196 | B200: 73 | E200: 68 | G200: 69 | I200: 72
... 228 more rows

Sheet samples
A1: =sampx(pop, popsize,confLevel,NewSample) -> 75 | B1: 70 | C1: 70 | D1: 61 | E1: 75 | F1: 62 | G1: 71 | H1: 72 | I1: 72 | J1: 68 | K1: =sampx(pop, popsize,confLevel,NewSample) -> 62 | L1: 72 | M1: 73 | N1: 72 | O1: 73 | P1: 75 | Q1: 61 | R1: 70 | S1: 74 | T1: 72 | U1: =sampx(pop, popsize,confLevel,NewSample) -> 73 | V1: 63 | W1: 61 | X1: 71 | Y1: 68 | Z1: 74 | AA1: 75 | AB1: 69 | AC1: 64 | AD1: 74 | AE1: =sampx(pop, popsize,confLevel,NewSample) -> 66 | AF1: 74 | AG1: 74 | AH1: 75 | AI1: 70 | AJ1: 64 | AK1: 66 | AL1: 61 | AM1: 64 | AN1: 65 | AO1: =sampx(pop, popsize,confLevel,NewSample) -> 64 | AP1: 73 | AQ1: 73 | AR1: 63 | AS1: 75 | AT1: 72 | AU1: 67 | AV1: 75 | AW1: 75 | AX1: 72 | AY1: =sampx(pop, popsize,confLevel,NewSample) -> 65 | AZ1: 73 | BA1: 68 | BB1: 64 | BC1: 69 | BD1: 75 | BE1: 75 | BF1: 75 | BG1: 72 | BH1: 64 | BI1: =sampx(pop, popsize,confLevel,NewSample) -> 69 | BJ1: 72 | BK1: 74 | BL1: 75 | BM1: 75 | BN1: 74 | BO1: 74 | BP1: 74 | BQ1: 72 | BR1: 74 | BS1: =sampx(pop, popsize,confLevel,NewSample) -> 72 | BT1: 70 | BU1: 75 | BV1: 70 | BW1: 74 | BX1: 74 | BY1: 75 | BZ1: 75 | CA1: 75 | CB1: 73 | CC1: =sampx(pop, popsize,confLevel,NewSample) -> 71 | CD1: 71 | CE1: 75 | CF1: 75 | CG1: 73 | CH1: 68 | CI1: 69 | CJ1: 75 | CK1: 72 | CL1: 71 | CM1: =sampx(pop, popsize,confLevel,NewSample) -> 74 | CN1: 72 | CO1: 64 | CP1: 74 | CQ1: 66 | CR1: 74 | CS1: 75 | CT1: 71 | CU1: 73 | CV1: 64
A2: 70 | B2: 62 | C2: 70 | D2: 74 | E2: 69 | F2: 71 | G2: 73 | H2: 75 | I2: 73 | J2: 74 | K2: 72 | L2: 75 | M2: 71 | N2: 74 | O2: 71 | P2: 72 | Q2: 69 | R2: 74 | S2: 75 | T2: 74 | U2: 75 | V2: 75 | W2: 74 | X2: 73 | Y2: 70 | Z2: 73 | AA2: 75 | AB2: 72 | AC2: 73 | AD2: 73 | AE2: 71 | AF2: 66 | AG2: 71 | AH2: 70 | AI2: 75 | AJ2: 72 | AK2: 75 | AL2: 71 | AM2: 73 | AN2: 75 | AO2: 75 | AP2: 72 | AQ2: 66 | AR2: 73 | AS2: 66 | AT2: 72 | AU2: 71 | AV2: 67 | AW2: 71 | AX2: 73 | AY2: 72 | AZ2: 73 | BA2: 74 | BB2: 71 | BC2: 75 | BD2: 75 | BE2: 71 | BF2: 73 | BG2: 69 | BH2: 71 | BI2: 73 | BJ2: 73 | BK2: 74 | BL2: 75 | BM2: 67 | BN2: 64 | BO2: 67 | BP2: 71 | BQ2: 64 | BR2: 71 | BS2: 71 | BT2: 75 | BU2: 71 | BV2: 64 | BW2: 75 | BX2: 72 | BY2: 67 | BZ2: 75 | CA2: 70 | CB2: 75 | CC2: 69 | CD2: 73 | CE2: 71 | CF2: 74 | CG2: 75 | CH2: 74 | CI2: 75 | CJ2: 73 | CK2: 73 | CL2: 73 | CM2: 73 | CN2: 71 | CO2: 75 | CP2: 67 | CQ2: 70 | CR2: 73 | CS2: 74 | CT2: 66 | CU2: 75 | CV2: 73
A3: 74 | B3: 75 | C3: 67 | D3: 70 | E3: 72 | F3: 73 | G3: 65 | H3: 75 | I3: 63 | J3: 66 | K3: 67 | L3: 75 | M3: 72 | N3: 71 | O3: 70 | P3: 72 | Q3: 70 | R3: 71 | S3: 67 | T3: 71 | U3: 75 | V3: 72 | W3: 75 | X3: 74 | Y3: 66 | Z3: 75 | AA3: 73 | AB3: 75 | AC3: 71 | AD3: 75 | AE3: 65 | AF3: 73 | AG3: 72 | AH3: 64 | AI3: 75 | AJ3: 71 | AK3: 61 | AL3: 68 | AM3: 71 | AN3: 72 | AO3: 65 | AP3: 73 | AQ3: 70 | AR3: 75 | AS3: 67 | AT3: 75 | AU3: 74 | AV3: 71 | AW3: 67 | AX3: 68 | AY3: 74 | AZ3: 72 | BA3: 63 | BB3: 71 | BC3: 72 | BD3: 74 | BE3: 75 | BF3: 70 | BG3: 71 | BH3: 75 | BI3: 70 | BJ3: 73 | BK3: 68 | BL3: 74 | BM3: 75 | BN3: 75 | BO3: 75 | BP3: 63 | BQ3: 75 | BR3: 72 | BS3: 64 | BT3: 73 | BU3: 68 | BV3: 71 | BW3: 73 | BX3: 75 | BY3: 72 | BZ3: 73 | CA3: 62 | CB3: 70 | CC3: 65 | CD3: 75 | CE3: 72 | CF3: 73 | CG3: 71 | CH3: 73 | CI3: 71 | CJ3: 73 | CK3: 73 | CL3: 72 | CM3: 69 | CN3: 65 | CO3: 69 | CP3: 75 | CQ3: 68 | CR3: 70 | CS3: 71 | CT3: 72 | CU3: 72 | CV3: 68
A4: 73 | B4: 72 | C4: 62 | D4: 75 | E4: 75 | F4: 70 | G4: 69 | H4: 74 | I4: 71 | J4: 71 | K4: 75 | L4: 74 | M4: 69 | N4: 67 | O4: 68 | P4: 72 | Q4: 75 | R4: 74 | S4: 64 | T4: 74 | U4: 75 | V4: 72 | W4: 73 | X4: 65 | Y4: 69 | Z4: 71 | AA4: 71 | AB4: 73 | AC4: 71 | AD4: 71 | AE4: 73 | AF4: 71 | AG4: 61 | AH4: 72 | AI4: 74 | AJ4: 74 | AK4: 72 | AL4: 70 | AM4: 75 | AN4: 75 | AO4: 72 | AP4: 75 | AQ4: 74 | AR4: 72 | AS4: 64 | AT4: 74 | AU4: 74 | AV4: 71 | AW4: 75 | AX4: 73 | AY4: 74 | AZ4: 71 | BA4: 69 | BB4: 74 | BC4: 71 | BD4: 75 | BE4: 74 | BF4: 72 | BG4: 74 | BH4: 74 | BI4: 68 | BJ4: 74 | BK4: 66 | BL4: 71 | BM4: 73 | BN4: 75 | BO4: 74 | BP4: 73 | BQ4: 75 | BR4: 75 | BS4: 65 | BT4: 71 | BU4: 65 | BV4: 71 | BW4: 69 | BX4: 75 | BY4: 73 | BZ4: 71 | CA4: 73 | CB4: 69 | CC4: 74 | CD4: 74 | CE4: 70 | CF4: 75 | CG4: 75 | CH4: 73 | CI4: 73 | CJ4: 69 | CK4: 75 | CL4: 73 | CM4: 68 | CN4: 71 | CO4: 69 | CP4: 67 | CQ4: 74 | CR4: 73 | CS4: 71 | CT4: 75 | CU4: 68 | CV4: 75
A5: 64 | B5: 74 | C5: 71 | D5: 63 | E5: 71 | F5: 73 | G5: 67 | H5: 69 | I5: 70 | J5: 74 | K5: 70 | L5: 69 | M5: 65 | N5: 66 | O5: 71 | P5: 72 | Q5: 73 | R5: 69 | S5: 73 | T5: 71 | U5: 75 | V5: 75 | W5: 71 | X5: 73 | Y5: 72 | Z5: 61 | AA5: 65 | AB5: 75 | AC5: 74 | AD5: 70 | AE5: 70 | AF5: 75 | AG5: 72 | AH5: 69 | AI5: 72 | AJ5: 71 | AK5: 74 | AL5: 69 | AM5: 74 | AN5: 69 | AO5: 71 | AP5: 70 | AQ5: 73 | AR5: 74 | AS5: 75 | AT5: 72 | AU5: 75 | AV5: 65 | AW5: 74 | AX5: 71 | AY5: 71 | AZ5: 73 | BA5: 67 | BB5: 61 | BC5: 68 | BD5: 69 | BE5: 75 | BF5: 75 | BG5: 68 | BH5: 74 | BI5: 65 | BJ5: 75 | BK5: 71 | BL5: 73 | BM5: 72 | BN5: 73 | BO5: 71 | BP5: 74 | BQ5: 73 | BR5: 75 | BS5: 72 | BT5: 71 | BU5: 71 | BV5: 66 | BW5: 74 | BX5: 71 | BY5: 73 | BZ5: 66 | CA5: 67 | CB5: 68 | CC5: 69 | CD5: 73 | CE5: 73 | CF5: 72 | CG5: 68 | CH5: 73 | CI5: 75 | CJ5: 75 | CK5: 71 | CL5: 67 | CM5: 71 | CN5: 64 | CO5: 75 | CP5: 75 | CQ5: 75 | CR5: 69 | CS5: 75 | CT5: 69 | CU5: 75 | CV5: 72
A6: 72 | B6: 62 | C6: 74 | D6: 71 | E6: 70 | F6: 69 | G6: 65 | H6: 72 | I6: 73 | J6: 75 | K6: 68 | L6: 68 | M6: 66 | N6: 74 | O6: 69 | P6: 71 | Q6: 69 | R6: 70 | S6: 69 | T6: 75 | U6: 64 | V6: 74 | W6: 70 | X6: 71 | Y6: 68 | Z6: 72 | AA6: 66 | AB6: 73 | AC6: 71 | AD6: 74 | AE6: 73 | AF6: 71 | AG6: 70 | AH6: 74 | AI6: 74 | AJ6: 68 | AK6: 64 | AL6: 74 | AM6: 66 | AN6: 72 | AO6: 71 | AP6: 72 | AQ6: 75 | AR6: 69 | AS6: 73 | AT6: 73 | AU6: 72 | AV6: 72 | AW6: 70 | AX6: 68 | AY6: 75 | AZ6: 74 | BA6: 71 | BB6: 73 | BC6: 69 | BD6: 72 | BE6: 75 | BF6: 71 | BG6: 75 | BH6: 72 | BI6: 72 | BJ6: 67 | BK6: 72 | BL6: 72 | BM6: 65 | BN6: 75 | BO6: 75 | BP6: 72 | BQ6: 71 | BR6: 75 | BS6: 74 | BT6: 73 | BU6: 72 | BV6: 74 | BW6: 72 | BX6: 69 | BY6: 69 | BZ6: 74 | CA6: 62 | CB6: 75 | CC6: 74 | CD6: 73 | CE6: 74 | CF6: 73 | CG6: 71 | CH6: 74 | CI6: 73 | CJ6: 65 | CK6: 73 | CL6: 67 | CM6: 71 | CN6: 72 | CO6: 69 | CP6: 75 | CQ6: 70 | CR6: 72 | CS6: 72 | CT6: 69 | CU6: 74 | CV6: 69
A7: 75 | B7: 74 | C7: 73 | D7: 73 | E7: 73 | F7: 75 | G7: 70 | H7: 72 | I7: 73 | J7: 72 | K7: 71 | L7: 75 | M7: 75 | N7: 72 | O7: 72 | P7: 73 | Q7: 68 | R7: 64 | S7: 73 | T7: 71 | U7: 74 | V7: 75 | W7: 75 | X7: 72 | Y7: 72 | Z7: 73 | AA7: 70 | AB7: 72 | AC7: 63 | AD7: 70 | AE7: 72 | AF7: 67 | AG7: 68 | AH7: 75 | AI7: 75 | AJ7: 72 | AK7: 72 | AL7: 71 | AM7: 72 | AN7: 65 | AO7: 71 | AP7: 72 | AQ7: 73 | AR7: 74 | AS7: 74 | AT7: 74 | AU7: 73 | AV7: 72 | AW7: 72 | AX7: 74 | AY7: 75 | AZ7: 72 | BA7: 72 | BB7: 62 | BC7: 71 | BD7: 71 | BE7: 75 | BF7: 72 | BG7: 74 | BH7: 72 | BI7: 70 | BJ7: 74 | BK7: 73 | BL7: 68 | BM7: 62 | BN7: 72 | BO7: 62 | BP7: 66 | BQ7: 74 | BR7: 73 | BS7: 72 | BT7: 75 | BU7: 75 | BV7: 75 | BW7: 73 | BX7: 72 | BY7: 71 | BZ7: 67 | CA7: 71 | CB7: 67 | CC7: 75 | CD7: 65 | CE7: 73 | CF7: 73 | CG7: 70 | CH7: 69 | CI7: 66 | CJ7: 70 | CK7: 75 | CL7: 64 | CM7: 68 | CN7: 71 | CO7: 68 | CP7: 72 | CQ7: 75 | CR7: 72 | CS7: 71 | CT7: 73 | CU7: 63 | CV7: 65
A8: 73 | B8: 71 | C8: 73 | D8: 75 | E8: 73 | F8: 74 | G8: 70 | H8: 73 | I8: 67 | J8: 71 | K8: 67 | L8: 74 | M8: 67 | N8: 69 | O8: 74 | P8: 75 | Q8: 74 | R8: 73 | S8: 69 | T8: 75 | U8: 64 | V8: 66 | W8: 75 | X8: 71 | Y8: 65 | Z8: 73 | AA8: 70 | AB8: 69 | AC8: 72 | AD8: 68 | AE8: 73 | AF8: 74 | AG8: 73 | AH8: 74 | AI8: 73 | AJ8: 75 | AK8: 64 | AL8: 69 | AM8: 73 | AN8: 66 | AO8: 71 | AP8: 71 | AQ8: 73 | AR8: 73 | AS8: 64 | AT8: 72 | AU8: 71 | AV8: 73 | AW8: 66 | AX8: 63 | AY8: 71 | AZ8: 74 | BA8: 70 | BB8: 75 | BC8: 63 | BD8: 71 | BE8: 69 | BF8: 74 | BG8: 75 | BH8: 69 | BI8: 63 | BJ8: 66 | BK8: 75 | BL8: 73 | BM8: 71 | BN8: 69 | BO8: 75 | BP8: 65 | BQ8: 73 | BR8: 72 | BS8: 61 | BT8: 73 | BU8: 68 | BV8: 74 | BW8: 72 | BX8: 70 | BY8: 73 | BZ8: 67 | CA8: 74 | CB8: 72 | CC8: 72 | CD8: 75 | CE8: 70 | CF8: 67 | CG8: 67 | CH8: 70 | CI8: 67 | CJ8: 71 | CK8: 73 | CL8: 73 | CM8: 72 | CN8: 72 | CO8: 75 | CP8: 72 | CQ8: 73 | CR8: 73 | CS8: 72 | CT8: 71 | CU8: 69 | CV8: 71
A9: 65 | B9: 75 | C9: 75 | D9: 71 | E9: 71 | F9: 74 | G9: 61 | H9: 72 | I9: 72 | J9: 64 | K9: 73 | L9: 68 | M9: 69 | N9: 71 | O9: 72 | P9: 67 | Q9: 69 | R9: 72 | S9: 72 | T9: 69 | U9: 68 | V9: 68 | W9: 75 | X9: 75 | Y9: 68 | Z9: 69 | AA9: 73 | AB9: 70 | AC9: 69 | AD9: 73 | AE9: 73 | AF9: 72 | AG9: 71 | AH9: 65 | AI9: 73 | AJ9: 73 | AK9: 69 | AL9: 69 | AM9: 75 | AN9: 74 | AO9: 69 | AP9: 71 | AQ9: 71 | AR9: 72 | AS9: 73 | AT9: 65 | AU9: 72 | AV9: 68 | AW9: 71 | AX9: 71 | AY9: 75 | AZ9: 73 | BA9: 71 | BB9: 73 | BC9: 74 | BD9: 66 | BE9: 69 | BF9: 72 | BG9: 73 | BH9: 64 | BI9: 72 | BJ9: 65 | BK9: 75 | BL9: 70 | BM9: 74 | BN9: 73 | BO9: 73 | BP9: 73 | BQ9: 74 | BR9: 75 | BS9: 73 | BT9: 75 | BU9: 73 | BV9: 70 | BW9: 62 | BX9: 75 | BY9: 73 | BZ9: 62 | CA9: 62 | CB9: 75 | CC9: 72 | CD9: 75 | CE9: 75 | CF9: 71 | CG9: 74 | CH9: 75 | CI9: 63 | CJ9: 71 | CK9: 72 | CL9: 75 | CM9: 75 | CN9: 71 | CO9: 75 | CP9: 66 | CQ9: 67 | CR9: 64 | CS9: 73 | CT9: 75 | CU9: 74 | CV9: 63
A10: 74 | B10: 72 | C10: 71 | D10: 75 | E10: 72 | F10: 64 | G10: 68 | H10: 72 | I10: 74 | J10: 75 | K10: 66 | L10: 71 | M10: 71 | N10: 71 | O10: 71 | P10: 67 | Q10: 74 | R10: 75 | S10: 71 | T10: 66 | U10: 71 | V10: 70 | W10: 71 | X10: 69 | Y10: 70 | Z10: 72 | AA10: 71 | AB10: 69 | AC10: 70 | AD10: 73 | AE10: 66 | AF10: 68 | AG10: 65 | AH10: 69 | AI10: 70 | AJ10: 71 | AK10: 70 | AL10: 67 | AM10: 72 | AN10: 72 | AO10: 74 | AP10: 74 | AQ10: 70 | AR10: 72 | AS10: 72 | AT10: 71 | AU10: 65 | AV10: 73 | AW10: 73 | AX10: 72 | AY10: 75 | AZ10: 75 | BA10: 73 | BB10: 73 | BC10: 75 | BD10: 64 | BE10: 65 | BF10: 74 | BG10: 73 | BH10: 69 | BI10: 67 | BJ10: 73 | BK10: 75 | BL10: 73 | BM10: 73 | BN10: 70 | BO10: 64 | BP10: 74 | BQ10: 74 | BR10: 69 | BS10: 73 | BT10: 73 | BU10: 71 | BV10: 75 | BW10: 64 | BX10: 64 | BY10: 74 | BZ10: 75 | CA10: 73 | CB10: 72 | CC10: 71 | CD10: 71 | CE10: 68 | CF10: 70 | CG10: 63 | CH10: 74 | CI10: 74 | CJ10: 69 | CK10: 71 | CL10: 62 | CM10: 74 | CN10: 72 | CO10: 75 | CP10: 68 | CQ10: 64 | CR10: 69 | CS10: 72 | CT10: 73 | CU10: 73 | CV10: 71
A11: =sampx(pop, popsize,confLevel,NewSample) -> 72 | B11: 75 | C11: 75 | D11: 73 | E11: 64 | F11: 73 | G11: 72 | H11: 64 | I11: 65 | J11: 74 | K11: =sampx(pop, popsize,confLevel,NewSample) -> 64 | L11: 73 | M11: 75 | N11: 62 | O11: 75 | P11: 74 | Q11: 74 | R11: 74 | S11: 67 | T11: 72 | U11: =sampx(pop, popsize,confLevel,NewSample) -> 71 | V11: 73 | W11: 68 | X11: 75 | Y11: 65 | Z11: 73 | AA11: 71 | AB11: 66 | AC11: 68 | AD11: 71 | AE11: =sampx(pop, popsize,confLevel,NewSample) -> 64 | AF11: 75 | AG11: 73 | AH11: 71 | AI11: 72 | AJ11: 64 | AK11: 65 | AL11: 73 | AM11: 68 | AN11: 74 | AO11: =sampx(pop, popsize,confLevel,NewSample) -> 72 | AP11: 74 | AQ11: 73 | AR11: 71 | AS11: 72 | AT11: 73 | AU11: 73 | AV11: 71 | AW11: 75 | AX11: 73 | AY11: =sampx(pop, popsize,confLevel,NewSample) -> 71 | AZ11: 73 | BA11: 66 | BB11: 73 | BC11: 75 | BD11: 64 | BE11: 74 | BF11: 68 | BG11: 69 | BH11: 62 | BI11: =sampx(pop, popsize,confLevel,NewSample) -> 75 | BJ11: 75 | BK11: 73 | BL11: 73 | BM11: 74 | BN11: 67 | BO11: 74 | BP11: 71 | BQ11: 72 | BR11: 75 | BS11: =sampx(pop, popsize,confLevel,NewSample) -> 74 | BT11: 72 | BU11: 72 | BV11: 71 | BW11: 72 | BX11: 75 | BY11: 72 | BZ11: 70 | CA11: 75 | CB11: 74 | CC11: =sampx(pop, popsize,confLevel,NewSample) -> 72 | CD11: 72 | CE11: 73 | CF11: 68 | CG11: 73 | CH11: 68 | CI11: 63 | CJ11: 67 | CK11: 67 | CL11: 74 | CM11: =sampx(pop, popsize,confLevel,NewSample) -> 72 | CN11: 75 | CO11: 75 | CP11: 64 | CQ11: 75 | CR11: 75 | CS11: 72 | CT11: 69 | CU11: 61 | CV11: 69
A12: 75 | B12: 72 | C12: 74 | D12: 73 | E12: 72 | F12: 73 | G12: 65 | H12: 75 | I12: 72 | J12: 75 | K12: 73 | L12: 70 | M12: 74 | N12: 72 | O12: 62 | P12: 75 | Q12: 70 | R12: 72 | S12: 70 | T12: 64 | U12: 73 | V12: 70 | W12: 69 | X12: 71 | Y12: 69 | Z12: 71 | AA12: 74 | AB12: 69 | AC12: 72 | AD12: 71 | AE12: 74 | AF12: 74 | AG12: 69 | AH12: 72 | AI12: 72 | AJ12: 75 | AK12: 75 | AL12: 71 | AM12: 75 | AN12: 74 | AO12: 71 | AP12: 70 | AQ12: 74 | AR12: 74 | AS12: 75 | AT12: 65 | AU12: 71 | AV12: 65 | AW12: 72 | AX12: 74 | AY12: 73 | AZ12: 74 | BA12: 69 | BB12: 67 | BC12: 72 | BD12: 72 | BE12: 68 | BF12: 64 | BG12: 70 | BH12: 71 | BI12: 74 | BJ12: 69 | BK12: 74 | BL12: 71 | BM12: 73 | BN12: 71 | BO12: 75 | BP12: 75 | BQ12: 73 | BR12: 75 | BS12: 69 | BT12: 68 | BU12: 72 | BV12: 73 | BW12: 65 | BX12: 75 | BY12: 75 | BZ12: 68 | CA12: 71 | CB12: 73 | CC12: 73 | CD12: 74 | CE12: 71 | CF12: 71 | CG12: 64 | CH12: 73 | CI12: 67 | CJ12: 72 | CK12: 73 | CL12: 71 | CM12: 74 | CN12: 74 | CO12: 75 | CP12: 66 | CQ12: 75 | CR12: 68 | CS12: 71 | CT12: 72 | CU12: 75 | CV12: 71
A13: 69 | B13: 65 | C13: 71 | D13: 75 | E13: 66 | F13: 74 | G13: 68 | H13: 67 | I13: 72 | J13: 75 | K13: 72 | L13: 72 | M13: 75 | N13: 71 | O13: 75 | P13: 71 | Q13: 71 | R13: 72 | S13: 71 | T13: 75 | U13: 73 | V13: 73 | W13: 72 | X13: 75 | Y13: 74 | Z13: 75 | AA13: 61 | AB13: 68 | AC13: 72 | AD13: 75 | AE13: 75 | AF13: 66 | AG13: 72 | AH13: 73 | AI13: 65 | AJ13: 72 | AK13: 72 | AL13: 75 | AM13: 74 | AN13: 75 | AO13: 71 | AP13: 67 | AQ13: 73 | AR13: 71 | AS13: 73 | AT13: 64 | AU13: 72 | AV13: 74 | AW13: 73 | AX13: 71 | AY13: 74 | AZ13: 74 | BA13: 69 | BB13: 75 | BC13: 74 | BD13: 71 | BE13: 65 | BF13: 75 | BG13: 73 | BH13: 74 | BI13: 74 | BJ13: 74 | BK13: 72 | BL13: 72 | BM13: 74 | BN13: 72 | BO13: 73 | BP13: 74 | BQ13: 62 | BR13: 72 | BS13: 71 | BT13: 72 | BU13: 69 | BV13: 68 | BW13: 71 | BX13: 73 | BY13: 75 | BZ13: 66 | CA13: 75 | CB13: 73 | CC13: 62 | CD13: 72 | CE13: 69 | CF13: 74 | CG13: 74 | CH13: 72 | CI13: 71 | CJ13: 69 | CK13: 73 | CL13: 73 | CM13: 73 | CN13: 71 | CO13: 72 | CP13: 71 | CQ13: 72 | CR13: 72 | CS13: 65 | CT13: 72 | CU13: 68 | CV13: 69
A14: 68 | B14: 71 | C14: 68 | D14: 67 | E14: 71 | F14: 65 | G14: 65 | H14: 74 | I14: 70 | J14: 64 | K14: 73 | L14: 73 | M14: 73 | N14: 71 | O14: 71 | P14: 72 | Q14: 75 | R14: 75 | S14: 71 | T14: 73 | U14: 71 | V14: 70 | W14: 71 | X14: 73 | Y14: 74 | Z14: 66 | AA14: 72 | AB14: 74 | AC14: 64 | AD14: 75 | AE14: 75 | AF14: 71 | AG14: 75 | AH14: 72 | AI14: 72 | AJ14: 64 | AK14: 74 | AL14: 73 | AM14: 72 | AN14: 63 | AO14: 72 | AP14: 71 | AQ14: 72 | AR14: 64 | AS14: 73 | AT14: 68 | AU14: 64 | AV14: 71 | AW14: 70 | AX14: 67 | AY14: 75 | AZ14: 74 | BA14: 73 | BB14: 73 | BC14: 72 | BD14: 75 | BE14: 74 | BF14: 67 | BG14: 73 | BH14: 73 | BI14: 73 | BJ14: 68 | BK14: 61 | BL14: 69 | BM14: 73 | BN14: 63 | BO14: 66 | BP14: 72 | BQ14: 72 | BR14: 74 | BS14: 64 | BT14: 72 | BU14: 72 | BV14: 72 | BW14: 71 | BX14: 63 | BY14: 72 | BZ14: 69 | CA14: 71 | CB14: 72 | CC14: 74 | CD14: 73 | CE14: 64 | CF14: 64 | CG14: 70 | CH14: 72 | CI14: 71 | CJ14: 65 | CK14: 74 | CL14: 75 | CM14: 67 | CN14: 73 | CO14: 75 | CP14: 74 | CQ14: 72 | CR14: 64 | CS14: 71 | CT14: 70 | CU14: 75 | CV14: 73
A15: 66 | B15: 75 | C15: 64 | D15: 70 | E15: 75 | F15: 73 | G15: 69 | H15: 75 | I15: 73 | J15: 73 | K15: 73 | L15: 72 | M15: 73 | N15: 74 | O15: 73 | P15: 63 | Q15: 74 | R15: 72 | S15: 71 | T15: 71 | U15: 73 | V15: 71 | W15: 75 | X15: 74 | Y15: 69 | Z15: 74 | AA15: 68 | AB15: 71 | AC15: 71 | AD15: 69 | AE15: 61 | AF15: 70 | AG15: 64 | AH15: 69 | AI15: 74 | AJ15: 70 | AK15: 69 | AL15: 69 | AM15: 73 | AN15: 65 | AO15: 72 | AP15: 74 | AQ15: 73 | AR15: 71 | AS15: 70 | AT15: 64 | AU15: 71 | AV15: 74 | AW15: 75 | AX15: 74 | AY15: 75 | AZ15: 73 | BA15: 74 | BB15: 73 | BC15: 67 | BD15: 73 | BE15: 61 | BF15: 74 | BG15: 74 | BH15: 63 | BI15: 71 | BJ15: 74 | BK15: 67 | BL15: 75 | BM15: 67 | BN15: 75 | BO15: 71 | BP15: 72 | BQ15: 67 | BR15: 73 | BS15: 74 | BT15: 62 | BU15: 74 | BV15: 72 | BW15: 73 | BX15: 71 | BY15: 67 | BZ15: 72 | CA15: 71 | CB15: 72 | CC15: 75 | CD15: 73 | CE15: 64 | CF15: 74 | CG15: 67 | CH15: 67 | CI15: 67 | CJ15: 72 | CK15: 73 | CL15: 74 | CM15: 67 | CN15: 67 | CO15: 71 | CP15: 75 | CQ15: 72 | CR15: 75 | CS15: 74 | CT15: 71 | CU15: 67 | CV15: 73
A16: 69 | B16: 75 | C16: 75 | D16: 74 | E16: 71 | F16: 72 | G16: 69 | H16: 75 | I16: 69 | J16: 66 | K16: 74 | L16: 71 | M16: 71 | N16: 69 | O16: 72 | P16: 66 | Q16: 61 | R16: 64 | S16: 65 | T16: 69 | U16: 72 | V16: 72 | W16: 71 | X16: 75 | Y16: 75 | Z16: 73 | AA16: 71 | AB16: 74 | AC16: 69 | AD16: 75 | AE16: 74 | AF16: 70 | AG16: 72 | AH16: 74 | AI16: 75 | AJ16: 74 | AK16: 71 | AL16: 73 | AM16: 72 | AN16: 75 | AO16: 75 | AP16: 75 | AQ16: 70 | AR16: 66 | AS16: 75 | AT16: 75 | AU16: 64 | AV16: 68 | AW16: 75 | AX16: 69 | AY16: 73 | AZ16: 69 | BA16: 75 | BB16: 70 | BC16: 73 | BD16: 72 | BE16: 72 | BF16: 71 | BG16: 73 | BH16: 71 | BI16: 73 | BJ16: 67 | BK16: 70 | BL16: 75 | BM16: 75 | BN16: 64 | BO16: 75 | BP16: 68 | BQ16: 63 | BR16: 75 | BS16: 68 | BT16: 72 | BU16: 73 | BV16: 71 | BW16: 66 | BX16: 64 | BY16: 72 | BZ16: 65 | CA16: 75 | CB16: 69 | CC16: 75 | CD16: 71 | CE16: 62 | CF16: 62 | CG16: 74 | CH16: 74 | CI16: 72 | CJ16: 74 | CK16: 75 | CL16: 75 | CM16: 72 | CN16: 71 | CO16: 67 | CP16: 71 | CQ16: 74 | CR16: 75 | CS16: 72 | CT16: 75 | CU16: 74 | CV16: 75
A17: 74 | B17: 64 | C17: 69 | D17: 65 | E17: 74 | F17: 69 | G17: 69 | H17: 75 | I17: 68 | J17: 71 | K17: 74 | L17: 71 | M17: 75 | N17: 71 | O17: 73 | P17: 73 | Q17: 69 | R17: 64 | S17: 71 | T17: 62 | U17: 69 | V17: 72 | W17: 72 | X17: 69 | Y17: 72 | Z17: 67 | AA17: 75 | AB17: 74 | AC17: 70 | AD17: 71 | AE17: 74 | AF17: 74 | AG17: 74 | AH17: 61 | AI17: 75 | AJ17: 75 | AK17: 71 | AL17: 72 | AM17: 75 | AN17: 75 | AO17: 72 | AP17: 73 | AQ17: 75 | AR17: 71 | AS17: 73 | AT17: 75 | AU17: 74 | AV17: 70 | AW17: 69 | AX17: 75 | AY17: 64 | AZ17: 62 | BA17: 68 | BB17: 71 | BC17: 67 | BD17: 71 | BE17: 74 | BF17: 75 | BG17: 74 | BH17: 75 | BI17: 72 | BJ17: 69 | BK17: 73 | BL17: 72 | BM17: 74 | BN17: 72 | BO17: 72 | BP17: 74 | BQ17: 73 | BR17: 75 | BS17: 64 | BT17: 75 | BU17: 74 | BV17: 73 | BW17: 69 | BX17: 70 | BY17: 70 | BZ17: 70 | CA17: 66 | CB17: 75 | CC17: 71 | CD17: 72 | CE17: 69 | CF17: 72 | CG17: 74 | CH17: 71 | CI17: 73 | CJ17: 71 | CK17: 71 | CL17: 74 | CM17: 69 | CN17: 75 | CO17: 72 | CP17: 72 | CQ17: 71 | CR17: 64 | CS17: 69 | CT17: 75 | CU17: 74 | CV17: 74
A18: 63 | B18: 72 | C18: 75 | D18: 67 | E18: 71 | F18: 74 | G18: 74 | H18: 70 | I18: 72 | J18: 73 | K18: 73 | L18: 74 | M18: 71 | N18: 72 | O18: 69 | P18: 71 | Q18: 65 | R18: 72 | S18: 72 | T18: 70 | U18: 71 | V18: 69 | W18: 71 | X18: 75 | Y18: 72 | Z18: 72 | AA18: 72 | AB18: 74 | AC18: 62 | AD18: 70 | AE18: 67 | AF18: 71 | AG18: 75 | AH18: 62 | AI18: 70 | AJ18: 72 | AK18: 75 | AL18: 75 | AM18: 75 | AN18: 64 | AO18: 72 | AP18: 71 | AQ18: 62 | AR18: 71 | AS18: 64 | AT18: 71 | AU18: 71 | AV18: 71 | AW18: 72 | AX18: 71 | AY18: 75 | AZ18: 70 | BA18: 73 | BB18: 75 | BC18: 67 | BD18: 66 | BE18: 75 | BF18: 68 | BG18: 73 | BH18: 73 | BI18: 75 | BJ18: 73 | BK18: 74 | BL18: 72 | BM18: 67 | BN18: 71 | BO18: 73 | BP18: 74 | BQ18: 66 | BR18: 74 | BS18: 72 | BT18: 74 | BU18: 72 | BV18: 71 | BW18: 71 | BX18: 75 | BY18: 75 | BZ18: 71 | CA18: 73 | CB18: 75 | CC18: 71 | CD18: 74 | CE18: 74 | CF18: 69 | CG18: 73 | CH18: 75 | CI18: 64 | CJ18: 61 | CK18: 75 | CL18: 72 | CM18: 72 | CN18: 72 | CO18: 73 | CP18: 74 | CQ18: 74 | CR18: 73 | CS18: 74 | CT18: 73 | CU18: 73 | CV18: 75
A19: 69 | B19: 69 | C19: 71 | D19: 64 | E19: 75 | F19: 74 | G19: 65 | H19: 75 | I19: 71 | J19: 69 | K19: 71 | L19: 72 | M19: 75 | N19: 72 | O19: 63 | P19: 72 | Q19: 73 | R19: 70 | S19: 70 | T19: 74 | U19: 72 | V19: 65 | W19: 72 | X19: 75 | Y19: 69 | Z19: 66 | AA19: 74 | AB19: 72 | AC19: 71 | AD19: 74 | AE19: 72 | AF19: 69 | AG19: 74 | AH19: 73 | AI19: 73 | AJ19: 71 | AK19: 73 | AL19: 70 | AM19: 69 | AN19: 69 | AO19: 73 | AP19: 74 | AQ19: 73 | AR19: 75 | AS19: 72 | AT19: 74 | AU19: 69 | AV19: 72 | AW19: 72 | AX19: 61 | AY19: 71 | AZ19: 73 | BA19: 65 | BB19: 70 | BC19: 72 | BD19: 70 | BE19: 73 | BF19: 70 | BG19: 64 | BH19: 71 | BI19: 71 | BJ19: 75 | BK19: 72 | BL19: 73 | BM19: 73 | BN19: 73 | BO19: 74 | BP19: 73 | BQ19: 67 | BR19: 74 | BS19: 73 | BT19: 74 | BU19: 71 | BV19: 74 | BW19: 75 | BX19: 75 | BY19: 68 | BZ19: 75 | CA19: 73 | CB19: 75 | CC19: 67 | CD19: 74 | CE19: 67 | CF19: 74 | CG19: 71 | CH19: 64 | CI19: 74 | CJ19: 73 | CK19: 73 | CL19: 69 | CM19: 65 | CN19: 71 | CO19: 73 | CP19: 68 | CQ19: 70 | CR19: 65 | CS19: 71 | CT19: 73 | CU19: 63 | CV19: 72
A20: 75 | B20: 69 | C20: 74 | D20: 68 | E20: 71 | F20: 74 | G20: 74 | H20: 72 | I20: 74 | J20: 73 | K20: 67 | L20: 68 | M20: 73 | N20: 75 | O20: 65 | P20: 74 | Q20: 71 | R20: 75 | S20: 62 | T20: 71 | U20: 73 | V20: 74 | W20: 68 | X20: 74 | Y20: 73 | Z20: 71 | AA20: 75 | AB20: 69 | AC20: 65 | AD20: 71 | AE20: 72 | AF20: 75 | AG20: 75 | AH20: 68 | AI20: 74 | AJ20: 72 | AK20: 75 | AL20: 67 | AM20: 73 | AN20: 72 | AO20: 71 | AP20: 66 | AQ20: 73 | AR20: 70 | AS20: 70 | AT20: 69 | AU20: 73 | AV20: 74 | AW20: 71 | AX20: 72 | AY20: 72 | AZ20: 72 | BA20: 72 | BB20: 73 | BC20: 75 | BD20: 71 | BE20: 73 | BF20: 67 | BG20: 71 | BH20: 71 | BI20: 71 | BJ20: 71 | BK20: 64 | BL20: 74 | BM20: 73 | BN20: 66 | BO20: 75 | BP20: 72 | BQ20: 74 | BR20: 68 | BS20: 66 | BT20: 72 | BU20: 73 | BV20: 67 | BW20: 70 | BX20: 74 | BY20: 74 | BZ20: 73 | CA20: 71 | CB20: 73 | CC20: 69 | CD20: 64 | CE20: 66 | CF20: 73 | CG20: 71 | CH20: 75 | CI20: 75 | CJ20: 72 | CK20: 67 | CL20: 73 | CM20: 71 | CN20: 69 | CO20: 67 | CP20: 73 | CQ20: 72 | CR20: 70 | CS20: 64 | CT20: 74 | CU20: 72 | CV20: 72
A21: =sampx(pop, popsize,confLevel,NewSample) -> 75 | B21: 72 | C21: 75 | D21: 69 | E21: 72 | F21: 71 | G21: 73 | H21: 71 | I21: 65 | J21: 67 | K21: =sampx(pop, popsize,confLevel,NewSample) -> 74 | L21: 72 | M21: 73 | N21: 66 | O21: 72 | P21: 69 | Q21: 74 | R21: 74 | S21: 73 | T21: 74 | U21: =sampx(pop, popsize,confLevel,NewSample) -> 75 | V21: 75 | W21: 68 | X21: 75 | Y21: 74 | Z21: 75 | AA21: 64 | AB21: 71 | AC21: 70 | AD21: 74 | AE21: =sampx(pop, popsize,confLevel,NewSample) -> 75 | AF21: 73 | AG21: 68 | AH21: 73 | AI21: 73 | AJ21: 67 | AK21: 64 | AL21: 72 | AM21: 71 | AN21: 65 | AO21: =sampx(pop, popsize,confLevel,NewSample) -> 69 | AP21: 73 | AQ21: 71 | AR21: 72 | AS21: 72 | AT21: 72 | AU21: 71 | AV21: 73 | AW21: 72 | AX21: 70 | AY21: =sampx(pop, popsize,confLevel,NewSample) -> 62 | AZ21: 72 | BA21: 72 | BB21: 73 | BC21: 71 | BD21: 73 | BE21: 67 | BF21: 63 | BG21: 74 | BH21: 74 | BI21: =sampx(pop, popsize,confLevel,NewSample) -> 74 | BJ21: 73 | BK21: 74 | BL21: 63 | BM21: 68 | BN21: 74 | BO21: 71 | BP21: 67 | BQ21: 62 | BR21: 73 | BS21: =sampx(pop, popsize,confLevel,NewSample) -> 67 | BT21: 68 | BU21: 66 | BV21: 68 | BW21: 73 | BX21: 69 | BY21: 72 | BZ21: 74 | CA21: 67 | CB21: 71 | CC21: =sampx(pop, popsize,confLevel,NewSample) -> 70 | CD21: 74 | CE21: 74 | CF21: 68 | CG21: 68 | CH21: 74 | CI21: 66 | CJ21: 71 | CK21: 73 | CL21: 70 | CM21: =sampx(pop, popsize,confLevel,NewSample) -> 63 | CN21: 71 | CO21: 73 | CP21: 64 | CQ21: 70 | CR21: 71 | CS21: 73 | CT21: 75 | CU21: 75 | CV21: 73
A22: 74 | B22: 74 | C22: 71 | D22: 64 | E22: 71 | F22: 72 | G22: 67 | H22: 68 | I22: 75 | J22: 75 | K22: 71 | L22: 68 | M22: 75 | N22: 73 | O22: 73 | P22: 73 | Q22: 74 | R22: 74 | S22: 74 | T22: 70 | U22: 73 | V22: 64 | W22: 68 | X22: 67 | Y22: 72 | Z22: 75 | AA22: 74 | AB22: 75 | AC22: 73 | AD22: 72 | AE22: 74 | AF22: 71 | AG22: 75 | AH22: 71 | AI22: 68 | AJ22: 74 | AK22: 64 | AL22: 71 | AM22: 73 | AN22: 74 | AO22: 62 | AP22: 69 | AQ22: 71 | AR22: 73 | AS22: 66 | AT22: 68 | AU22: 72 | AV22: 73 | AW22: 74 | AX22: 65 | AY22: 71 | AZ22: 69 | BA22: 70 | BB22: 74 | BC22: 67 | BD22: 75 | BE22: 70 | BF22: 64 | BG22: 71 | BH22: 71 | BI22: 70 | BJ22: 68 | BK22: 74 | BL22: 75 | BM22: 73 | BN22: 69 | BO22: 67 | BP22: 69 | BQ22: 75 | BR22: 75 | BS22: 71 | BT22: 69 | BU22: 70 | BV22: 69 | BW22: 74 | BX22: 74 | BY22: 70 | BZ22: 69 | CA22: 71 | CB22: 69 | CC22: 75 | CD22: 73 | CE22: 72 | CF22: 73 | CG22: 72 | CH22: 74 | CI22: 74 | CJ22: 61 | CK22: 69 | CL22: 73 | CM22: 66 | CN22: 67 | CO22: 72 | CP22: 72 | CQ22: 66 | CR22: 65 | CS22: 69 | CT22: 66 | CU22: 73 | CV22: 70
A23: 72 | B23: 70 | C23: 72 | D23: 67 | E23: 75 | F23: 71 | G23: 72 | H23: 72 | I23: 74 | J23: 73 | K23: 71 | L23: 75 | M23: 64 | N23: 68 | O23: 74 | P23: 75 | Q23: 72 | R23: 75 | S23: 74 | T23: 75 | U23: 75 | V23: 66 | W23: 69 | X23: 74 | Y23: 73 | Z23: 75 | AA23: 71 | AB23: 75 | AC23: 72 | AD23: 71 | AE23: 67 | AF23: 74 | AG23: 72 | AH23: 64 | AI23: 73 | AJ23: 71 | AK23: 75 | AL23: 75 | AM23: 67 | AN23: 74 | AO23: 69 | AP23: 74 | AQ23: 74 | AR23: 72 | AS23: 71 | AT23: 74 | AU23: 73 | AV23: 70 | AW23: 74 | AX23: 75 | AY23: 75 | AZ23: 66 | BA23: 73 | BB23: 72 | BC23: 74 | BD23: 74 | BE23: 72 | BF23: 75 | BG23: 66 | BH23: 65 | BI23: 69 | BJ23: 66 | BK23: 65 | BL23: 75 | BM23: 72 | BN23: 66 | BO23: 67 | BP23: 74 | BQ23: 72 | BR23: 67 | BS23: 75 | BT23: 71 | BU23: 74 | BV23: 67 | BW23: 71 | BX23: 74 | BY23: 73 | BZ23: 74 | CA23: 69 | CB23: 69 | CC23: 75 | CD23: 67 | CE23: 67 | CF23: 69 | CG23: 73 | CH23: 68 | CI23: 74 | CJ23: 72 | CK23: 71 | CL23: 64 | CM23: 75 | CN23: 73 | CO23: 72 | CP23: 75 | CQ23: 72 | CR23: 75 | CS23: 74 | CT23: 64 | CU23: 70 | CV23: 74
A24: 70 | B24: 68 | C24: 72 | D24: 74 | E24: 61 | F24: 74 | G24: 72 | H24: 73 | I24: 75 | J24: 75 | K24: 73 | L24: 68 | M24: 74 | N24: 70 | O24: 66 | P24: 73 | Q24: 72 | R24: 72 | S24: 64 | T24: 73 | U24: 74 | V24: 73 | W24: 62 | X24: 72 | Y24: 64 | Z24: 73 | AA24: 71 | AB24: 71 | AC24: 74 | AD24: 64 | AE24: 75 | AF24: 74 | AG24: 72 | AH24: 70 | AI24: 64 | AJ24: 72 | AK24: 72 | AL24: 72 | AM24: 74 | AN24: 62 | AO24: 71 | AP24: 75 | AQ24: 69 | AR24: 69 | AS24: 71 | AT24: 70 | AU24: 73 | AV24: 67 | AW24: 73 | AX24: 75 | AY24: 75 | AZ24: 75 | BA24: 73 | BB24: 67 | BC24: 73 | BD24: 75 | BE24: 71 | BF24: 72 | BG24: 74 | BH24: 63 | BI24: 70 | BJ24: 72 | BK24: 71 | BL24: 71 | BM24: 72 | BN24: 75 | BO24: 75 | BP24: 64 | BQ24: 72 | BR24: 65 | BS24: 73 | BT24: 70 | BU24: 64 | BV24: 72 | BW24: 75 | BX24: 64 | BY24: 73 | BZ24: 74 | CA24: 74 | CB24: 64 | CC24: 75 | CD24: 73 | CE24: 73 | CF24: 71 | CG24: 65 | CH24: 73 | CI24: 73 | CJ24: 67 | CK24: 75 | CL24: 73 | CM24: 69 | CN24: 67 | CO24: 72 | CP24: 69 | CQ24: 73 | CR24: 72 | CS24: 72 | CT24: 74 | CU24: 61 | CV24: 68
A25: 72 | B25: 75 | C25: 71 | D25: 64 | E25: 73 | F25: 68 | G25: 64 | H25: 64 | I25: 71 | J25: 71 | K25: 64 | L25: 75 | M25: 75 | N25: 68 | O25: 71 | P25: 72 | Q25: 72 | R25: 68 | S25: 65 | T25: 65 | U25: 74 | V25: 71 | W25: 70 | X25: 72 | Y25: 75 | Z25: 65 | AA25: 72 | AB25: 72 | AC25: 75 | AD25: 71 | AE25: 70 | AF25: 72 | AG25: 67 | AH25: 63 | AI25: 67 | AJ25: 75 | AK25: 73 | AL25: 75 | AM25: 71 | AN25: 75 | AO25: 75 | AP25: 68 | AQ25: 70 | AR25: 72 | AS25: 73 | AT25: 75 | AU25: 67 | AV25: 73 | AW25: 69 | AX25: 71 | AY25: 73 | AZ25: 64 | BA25: 72 | BB25: 74 | BC25: 73 | BD25: 75 | BE25: 71 | BF25: 74 | BG25: 71 | BH25: 71 | BI25: 72 | BJ25: 70 | BK25: 66 | BL25: 72 | BM25: 68 | BN25: 72 | BO25: 71 | BP25: 71 | BQ25: 72 | BR25: 72 | BS25: 72 | BT25: 71 | BU25: 74 | BV25: 74 | BW25: 72 | BX25: 73 | BY25: 71 | BZ25: 68 | CA25: 73 | CB25: 69 | CC25: 72 | CD25: 72 | CE25: 75 | CF25: 70 | CG25: 64 | CH25: 75 | CI25: 69 | CJ25: 72 | CK25: 72 | CL25: 73 | CM25: 70 | CN25: 75 | CO25: 66 | CP25: 71 | CQ25: 75 | CR25: 72 | CS25: 75 | CT25: 71 | CU25: 61 | CV25: 75
A26: 74 | B26: 72 | C26: 74 | D26: 69 | E26: 69 | F26: 73 | G26: 70 | H26: 68 | I26: 73 | J26: 75 | K26: 74 | L26: 69 | M26: 75 | N26: 72 | O26: 72 | P26: 71 | Q26: 73 | R26: 73 | S26: 72 | T26: 73 | U26: 74 | V26: 68 | W26: 73 | X26: 68 | Y26: 74 | Z26: 75 | AA26: 75 | AB26: 71 | AC26: 68 | AD26: 64 | AE26: 68 | AF26: 72 | AG26: 72 | AH26: 75 | AI26: 70 | AJ26: 74 | AK26: 72 | AL26: 63 | AM26: 71 | AN26: 72 | AO26: 71 | AP26: 71 | AQ26: 64 | AR26: 71 | AS26: 67 | AT26: 67 | AU26: 68 | AV26: 73 | AW26: 74 | AX26: 74 | AY26: 72 | AZ26: 71 | BA26: 75 | BB26: 71 | BC26: 67 | BD26: 71 | BE26: 67 | BF26: 74 | BG26: 75 | BH26: 67 | BI26: 75 | BJ26: 74 | BK26: 72 | BL26: 69 | BM26: 71 | BN26: 73 | BO26: 74 | BP26: 75 | BQ26: 69 | BR26: 64 | BS26: 67 | BT26: 75 | BU26: 75 | BV26: 68 | BW26: 71 | BX26: 75 | BY26: 75 | BZ26: 65 | CA26: 69 | CB26: 66 | CC26: 64 | CD26: 75 | CE26: 75 | CF26: 72 | CG26: 67 | CH26: 74 | CI26: 73 | CJ26: 73 | CK26: 70 | CL26: 74 | CM26: 69 | CN26: 67 | CO26: 73 | CP26: 75 | CQ26: 74 | CR26: 74 | CS26: 74 | CT26: 74 | CU26: 62 | CV26: 66
A27: 71 | B27: 72 | C27: 74 | D27: 75 | E27: 75 | F27: 73 | G27: 73 | H27: 74 | I27: 74 | J27: 72 | K27: 73 | L27: 73 | M27: 73 | N27: 72 | O27: 73 | P27: 75 | Q27: 65 | R27: 73 | S27: 71 | T27: 72 | U27: 72 | V27: 69 | W27: 70 | X27: 72 | Y27: 73 | Z27: 64 | AA27: 74 | AB27: 74 | AC27: 73 | AD27: 71 | AE27: 73 | AF27: 74 | AG27: 74 | AH27: 71 | AI27: 70 | AJ27: 72 | AK27: 72 | AL27: 71 | AM27: 73 | AN27: 71 | AO27: 71 | AP27: 67 | AQ27: 75 | AR27: 71 | AS27: 71 | AT27: 75 | AU27: 73 | AV27: 73 | AW27: 70 | AX27: 74 | AY27: 75 | AZ27: 69 | BA27: 74 | BB27: 67 | BC27: 64 | BD27: 64 | BE27: 71 | BF27: 73 | BG27: 68 | BH27: 72 | BI27: 71 | BJ27: 62 | BK27: 71 | BL27: 75 | BM27: 75 | BN27: 65 | BO27: 72 | BP27: 75 | BQ27: 75 | BR27: 67 | BS27: 64 | BT27: 61 | BU27: 73 | BV27: 63 | BW27: 73 | BX27: 75 | BY27: 69 | BZ27: 74 | CA27: 71 | CB27: 64 | CC27: 74 | CD27: 74 | CE27: 75 | CF27: 73 | CG27: 69 | CH27: 64 | CI27: 73 | CJ27: 71 | CK27: 73 | CL27: 70 | CM27: 74 | CN27: 75 | CO27: 73 | CP27: 72 | CQ27: 62 | CR27: 72 | CS27: 69 | CT27: 74 | CU27: 73 | CV27: 71
A28: 68 | B28: 74 | C28: 74 | D28: 73 | E28: 65 | F28: 74 | G28: 74 | H28: 74 | I28: 73 | J28: 68 | K28: 75 | L28: 74 | M28: 68 | N28: 72 | O28: 74 | P28: 70 | Q28: 72 | R28: 65 | S28: 75 | T28: 73 | U28: 74 | V28: 73 | W28: 75 | X28: 73 | Y28: 66 | Z28: 63 | AA28: 75 | AB28: 71 | AC28: 72 | AD28: 71 | AE28: 65 | AF28: 64 | AG28: 75 | AH28: 72 | AI28: 71 | AJ28: 74 | AK28: 75 | AL28: 73 | AM28: 75 | AN28: 64 | AO28: 73 | AP28: 75 | AQ28: 75 | AR28: 68 | AS28: 69 | AT28: 65 | AU28: 75 | AV28: 70 | AW28: 73 | AX28: 72 | AY28: 64 | AZ28: 74 | BA28: 72 | BB28: 71 | BC28: 71 | BD28: 72 | BE28: 73 | BF28: 64 | BG28: 72 | BH28: 72 | BI28: 72 | BJ28: 74 | BK28: 69 | BL28: 75 | BM28: 72 | BN28: 71 | BO28: 74 | BP28: 74 | BQ28: 72 | BR28: 71 | BS28: 66 | BT28: 69 | BU28: 68 | BV28: 70 | BW28: 72 | BX28: 64 | BY28: 75 | BZ28: 73 | CA28: 64 | CB28: 75 | CC28: 70 | CD28: 71 | CE28: 72 | CF28: 71 | CG28: 73 | CH28: 69 | CI28: 74 | CJ28: 71 | CK28: 71 | CL28: 75 | CM28: 73 | CN28: 73 | CO28: 62 | CP28: 68 | CQ28: 72 | CR28: 67 | CS28: 71 | CT28: 72 | CU28: 74 | CV28: 74
A29: 72 | B29: 68 | C29: 72 | D29: 75 | E29: 70 | F29: 74 | G29: 74 | H29: 75 | I29: 71 | J29: 73 | K29: 75 | L29: 74 | M29: 73 | N29: 68 | O29: 68 | P29: 74 | Q29: 69 | R29: 67 | S29: 70 | T29: 67 | U29: 69 | V29: 71 | W29: 75 | X29: 74 | Y29: 68 | Z29: 73 | AA29: 71 | AB29: 72 | AC29: 73 | AD29: 73 | AE29: 73 | AF29: 71 | AG29: 72 | AH29: 66 | AI29: 71 | AJ29: 71 | AK29: 73 | AL29: 71 | AM29: 71 | AN29: 72 | AO29: 71 | AP29: 75 | AQ29: 74 | AR29: 64 | AS29: 69 | AT29: 69 | AU29: 70 | AV29: 74 | AW29: 69 | AX29: 70 | AY29: 72 | AZ29: 66 | BA29: 73 | BB29: 73 | BC29: 72 | BD29: 67 | BE29: 71 | BF29: 72 | BG29: 74 | BH29: 70 | BI29: 69 | BJ29: 62 | BK29: 75 | BL29: 74 | BM29: 67 | BN29: 73 | BO29: 64 | BP29: 75 | BQ29: 73 | BR29: 71 | BS29: 72 | BT29: 66 | BU29: 69 | BV29: 71 | BW29: 64 | BX29: 73 | BY29: 72 | BZ29: 72 | CA29: 72 | CB29: 71 | CC29: 73 | CD29: 74 | CE29: 75 | CF29: 72 | CG29: 66 | CH29: 74 | CI29: 73 | CJ29: 75 | CK29: 71 | CL29: 74 | CM29: 75 | CN29: 75 | CO29: 71 | CP29: 74 | CQ29: 72 | CR29: 72 | CS29: 74 | CT29: 63 | CU29: 75 | CV29: 64
A30: 73 | B30: 70 | C30: 74 | D30: 72 | E30: 74 | F30: 64 | G30: 73 | H30: 74 | I30: 75 | J30: 69 | K30: 68 | L30: 73 | M30: 74 | N30: 72 | O30: 73 | P30: 74 | Q30: 73 | R30: 65 | S30: 74 | T30: 73 | U30: 73 | V30: 75 | W30: 73 | X30: 75 | Y30: 71 | Z30: 67 | AA30: 75 | AB30: 75 | AC30: 71 | AD30: 71 | AE30: 71 | AF30: 66 | AG30: 75 | AH30: 65 | AI30: 71 | AJ30: 74 | AK30: 69 | AL30: 66 | AM30: 68 | AN30: 72 | AO30: 75 | AP30: 69 | AQ30: 68 | AR30: 69 | AS30: 71 | AT30: 70 | AU30: 72 | AV30: 71 | AW30: 75 | AX30: 74 | AY30: 72 | AZ30: 73 | BA30: 69 | BB30: 61 | BC30: 73 | BD30: 74 | BE30: 66 | BF30: 73 | BG30: 67 | BH30: 67 | BI30: 72 | BJ30: 72 | BK30: 71 | BL30: 70 | BM30: 75 | BN30: 74 | BO30: 71 | BP30: 70 | BQ30: 73 | BR30: 74 | BS30: 75 | BT30: 74 | BU30: 75 | BV30: 67 | BW30: 69 | BX30: 70 | BY30: 74 | BZ30: 75 | CA30: 74 | CB30: 70 | CC30: 75 | CD30: 70 | CE30: 64 | CF30: 75 | CG30: 74 | CH30: 73 | CI30: 74 | CJ30: 73 | CK30: 75 | CL30: 64 | CM30: 75 | CN30: 75 | CO30: 75 | CP30: 66 | CQ30: 73 | CR30: 72 | CS30: 75 | CT30: 73 | CU30: 75 | CV30: 73
A31: =sampx(pop, popsize,confLevel,NewSample) -> 71 | B31: 71 | C31: 73 | D31: 74 | E31: 72 | F31: 73 | G31: 74 | H31: 74 | I31: 73 | J31: 75 | K31: =sampx(pop, popsize,confLevel,NewSample) -> 74 | L31: 71 | M31: 72 | N31: 71 | O31: 75 | P31: 65 | Q31: 63 | R31: 73 | S31: 64 | T31: 71 | U31: =sampx(pop, popsize,confLevel,NewSample) -> 68 | V31: 72 | W31: 71 | X31: 68 | Y31: 74 | Z31: 72 | AA31: 75 | AB31: 66 | AC31: 73 | AD31: 74 | AE31: =sampx(pop, popsize,confLevel,NewSample) -> 73 | AF31: 65 | AG31: 66 | AH31: 69 | AI31: 74 | AJ31: 73 | AK31: 72 | AL31: 68 | AM31: 74 | AN31: 65 | AO31: =sampx(pop, popsize,confLevel,NewSample) -> 71 | AP31: 74 | AQ31: 75 | AR31: 73 | AS31: 75 | AT31: 74 | AU31: 73 | AV31: 72 | AW31: 69 | AX31: 75 | AY31: =sampx(pop, popsize,confLevel,NewSample) -> 71 | AZ31: 69 | BA31: 75 | BB31: 73 | BC31: 72 | BD31: 68 | BE31: 74 | BF31: 72 | BG31: 69 | BH31: 75 | BI31: =sampx(pop, popsize,confLevel,NewSample) -> 66 | BJ31: 75 | BK31: 71 | BL31: 73 | BM31: 68 | BN31: 75 | BO31: 70 | BP31: 68 | BQ31: 71 | BR31: 70 | BS31: =sampx(pop, popsize,confLevel,NewSample) -> 64 | BT31: 75 | BU31: 65 | BV31: 66 | BW31: 74 | BX31: 73 | BY31: 64 | BZ31: 72 | CA31: 74 | CB31: 65 | CC31: =sampx(pop, popsize,confLevel,NewSample) -> 75 | CD31: 74 | CE31: 72 | CF31: 66 | CG31: 75 | CH31: 66 | CI31: 74 | CJ31: 75 | CK31: 75 | CL31: 73 | CM31: =sampx(pop, popsize,confLevel,NewSample) -> 71 | CN31: 69 | CO31: 75 | CP31: 72 | CQ31: 71 | CR31: 75 | CS31: 75 | CT31: 71 | CU31: 72 | CV31: 68
A32: 69 | B32: 72 | C32: 73 | D32: 65 | E32: 64 | F32: 71 | G32: 75 | H32: 71 | I32: 75 | J32: 65 | K32: 64 | L32: 73 | M32: 72 | N32: 73 | O32: 72 | P32: 70 | Q32: 69 | R32: 75 | S32: 75 | T32: 74 | U32: 66 | V32: 72 | W32: 74 | X32: 73 | Y32: 74 | Z32: 70 | AA32: 74 | AB32: 74 | AC32: 74 | AD32: 74 | AE32: 73 | AF32: 73 | AG32: 68 | AH32: 72 | AI32: 71 | AJ32: 70 | AK32: 71 | AL32: 72 | AM32: 75 | AN32: 69 | AO32: 72 | AP32: 74 | AQ32: 69 | AR32: 74 | AS32: 73 | AT32: 75 | AU32: 63 | AV32: 71 | AW32: 68 | AX32: 71 | AY32: 72 | AZ32: 71 | BA32: 64 | BB32: 71 | BC32: 74 | BD32: 70 | BE32: 69 | BF32: 71 | BG32: 69 | BH32: 74 | BI32: 68 | BJ32: 69 | BK32: 73 | BL32: 71 | BM32: 67 | BN32: 70 | BO32: 72 | BP32: 69 | BQ32: 64 | BR32: 73 | BS32: 73 | BT32: 73 | BU32: 73 | BV32: 68 | BW32: 65 | BX32: 61 | BY32: 65 | BZ32: 71 | CA32: 70 | CB32: 70 | CC32: 72 | CD32: 72 | CE32: 73 | CF32: 72 | CG32: 75 | CH32: 74 | CI32: 71 | CJ32: 75 | CK32: 71 | CL32: 64 | CM32: 69 | CN32: 64 | CO32: 74 | CP32: 74 | CQ32: 70 | CR32: 65 | CS32: 72 | CT32: 75 | CU32: 71 | CV32: 72
A33: 62 | B33: 69 | C33: 72 | D33: 75 | E33: 74 | F33: 74 | G33: 68 | H33: 71 | I33: 75 | J33: 70 | K33: 73 | L33: 72 | M33: 73 | N33: 75 | O33: 66 | P33: 65 | Q33: 71 | R33: 72 | S33: 73 | T33: 72 | U33: 72 | V33: 67 | W33: 74 | X33: 74 | Y33: 71 | Z33: 74 | AA33: 71 | AB33: 72 | AC33: 68 | AD33: 70 | AE33: 68 | AF33: 72 | AG33: 73 | AH33: 72 | AI33: 75 | AJ33: 67 | AK33: 75 | AL33: 70 | AM33: 64 | AN33: 66 | AO33: 72 | AP33: 72 | AQ33: 74 | AR33: 71 | AS33: 73 | AT33: 73 | AU33: 71 | AV33: 72 | AW33: 62 | AX33: 67 | AY33: 74 | AZ33: 72 | BA33: 64 | BB33: 69 | BC33: 71 | BD33: 68 | BE33: 72 | BF33: 74 | BG33: 71 | BH33: 75 | BI33: 67 | BJ33: 64 | BK33: 71 | BL33: 74 | BM33: 74 | BN33: 69 | BO33: 65 | BP33: 72 | BQ33: 74 | BR33: 73 | BS33: 75 | BT33: 74 | BU33: 73 | BV33: 69 | BW33: 71 | BX33: 74 | BY33: 75 | BZ33: 65 | CA33: 75 | CB33: 64 | CC33: 65 | CD33: 74 | CE33: 66 | CF33: 72 | CG33: 69 | CH33: 66 | CI33: 68 | CJ33: 74 | CK33: 73 | CL33: 66 | CM33: 65 | CN33: 73 | CO33: 72 | CP33: 74 | CQ33: 75 | CR33: 71 | CS33: 73 | CT33: 74 | CU33: 73 | CV33: 70
A34: 75 | B34: 71 | C34: 75 | D34: 61 | E34: 71 | F34: 74 | G34: 71 | H34: 75 | I34: 73 | J34: 75 | K34: 75 | L34: 71 | M34: 72 | N34: 71 | O34: 75 | P34: 72 | Q34: 73 | R34: 73 | S34: 73 | T34: 75 | U34: 75 | V34: 70 | W34: 72 | X34: 64 | Y34: 75 | Z34: 75 | AA34: 74 | AB34: 74 | AC34: 67 | AD34: 70 | AE34: 75 | AF34: 75 | AG34: 70 | AH34: 67 | AI34: 72 | AJ34: 64 | AK34: 72 | AL34: 69 | AM34: 75 | AN34: 72 | AO34: 74 | AP34: 75 | AQ34: 71 | AR34: 73 | AS34: 75 | AT34: 72 | AU34: 67 | AV34: 72 | AW34: 69 | AX34: 69 | AY34: 73 | AZ34: 67 | BA34: 71 | BB34: 71 | BC34: 67 | BD34: 69 | BE34: 73 | BF34: 72 | BG34: 74 | BH34: 74 | BI34: 73 | BJ34: 74 | BK34: 74 | BL34: 71 | BM34: 73 | BN34: 72 | BO34: 74 | BP34: 73 | BQ34: 69 | BR34: 74 | BS34: 72 | BT34: 69 | BU34: 65 | BV34: 66 | BW34: 75 | BX34: 71 | BY34: 67 | BZ34: 73 | CA34: 75 | CB34: 69 | CC34: 73 | CD34: 75 | CE34: 64 | CF34: 75 | CG34: 72 | CH34: 65 | CI34: 71 | CJ34: 71 | CK34: 72 | CL34: 65 | CM34: 65 | CN34: 73 | CO34: 75 | CP34: 75 | CQ34: 69 | CR34: 65 | CS34: 74 | CT34: 75 | CU34: 71 | CV34: 73
A35: 69 | B35: 75 | C35: 70 | D35: 66 | E35: 75 | F35: 73 | G35: 61 | H35: 75 | I35: 73 | J35: 64 | K35: 73 | L35: 75 | M35: 75 | N35: 74 | O35: 74 | P35: 74 | Q35: 72 | R35: 73 | S35: 67 | T35: 74 | U35: 72 | V35: 71 | W35: 70 | X35: 69 | Y35: 68 | Z35: 74 | AA35: 66 | AB35: 72 | AC35: 73 | AD35: 70 | AE35: 74 | AF35: 73 | AG35: 75 | AH35: 75 | AI35: 72 | AJ35: 69 | AK35: 72 | AL35: 72 | AM35: 71 | AN35: 73 | AO35: 75 | AP35: 72 | AQ35: 67 | AR35: 73 | AS35: 71 | AT35: 68 | AU35: 72 | AV35: 74 | AW35: 72 | AX35: 74 | AY35: 72 | AZ35: 71 | BA35: 75 | BB35: 72 | BC35: 74 | BD35: 67 | BE35: 74 | BF35: 75 | BG35: 72 | BH35: 64 | BI35: 70 | BJ35: 65 | BK35: 72 | BL35: 75 | BM35: 75 | BN35: 67 | BO35: 73 | BP35: 67 | BQ35: 73 | BR35: 65 | BS35: 72 | BT35: 70 | BU35: 71 | BV35: 73 | BW35: 75 | BX35: 71 | BY35: 73 | BZ35: 73 | CA35: 71 | CB35: 75 | CC35: 69 | CD35: 62 | CE35: 69 | CF35: 72 | CG35: 74 | CH35: 71 | CI35: 74 | CJ35: 71 | CK35: 73 | CL35: 72 | CM35: 71 | CN35: 69 | CO35: 73 | CP35: 72 | CQ35: 71 | CR35: 74 | CS35: 71 | CT35: 73 | CU35: 73 | CV35: 75
A36: 74 | B36: 72 | C36: 72 | D36: 72 | E36: 73 | F36: 75 | G36: 69 | H36: 64 | I36: 71 | J36: 73 | K36: 75 | L36: 73 | M36: 71 | N36: 72 | O36: 74 | P36: 75 | Q36: 69 | R36: 75 | S36: 74 | T36: 74 | U36: 72 | V36: 75 | W36: 74 | X36: 75 | Y36: 72 | Z36: 73 | AA36: 73 | AB36: 71 | AC36: 69 | AD36: 70 | AE36: 74 | AF36: 65 | AG36: 62 | AH36: 73 | AI36: 73 | AJ36: 64 | AK36: 74 | AL36: 64 | AM36: 74 | AN36: 75 | AO36: 67 | AP36: 70 | AQ36: 65 | AR36: 72 | AS36: 71 | AT36: 75 | AU36: 69 | AV36: 72 | AW36: 71 | AX36: 74 | AY36: 64 | AZ36: 70 | BA36: 72 | BB36: 72 | BC36: 74 | BD36: 65 | BE36: 73 | BF36: 75 | BG36: 74 | BH36: 64 | BI36: 64 | BJ36: 73 | BK36: 75 | BL36: 75 | BM36: 75 | BN36: 73 | BO36: 70 | BP36: 75 | BQ36: 75 | BR36: 73 | BS36: 72 | BT36: 72 | BU36: 71 | BV36: 72 | BW36: 66 | BX36: 64 | BY36: 73 | BZ36: 74 | CA36: 70 | CB36: 74 | CC36: 63 | CD36: 69 | CE36: 75 | CF36: 74 | CG36: 70 | CH36: 71 | CI36: 64 | CJ36: 70 | CK36: 72 | CL36: 62 | CM36: 66 | CN36: 73 | CO36: 72 | CP36: 75 | CQ36: 71 | CR36: 66 | CS36: 64 | CT36: 71 | CU36: 71 | CV36: 75
A37: 74 | B37: 75 | C37: 72 | D37: 74 | E37: 71 | F37: 71 | G37: 73 | H37: 74 | I37: 73 | J37: 64 | K37: 73 | L37: 75 | M37: 71 | N37: 72 | O37: 67 | P37: 72 | Q37: 67 | R37: 75 | S37: 75 | T37: 73 | U37: 62 | V37: 75 | W37: 75 | X37: 73 | Y37: 75 | Z37: 71 | AA37: 63 | AB37: 72 | AC37: 67 | AD37: 74 | AE37: 73 | AF37: 73 | AG37: 71 | AH37: 74 | AI37: 74 | AJ37: 75 | AK37: 71 | AL37: 72 | AM37: 66 | AN37: 67 | AO37: 75 | AP37: 71 | AQ37: 67 | AR37: 73 | AS37: 75 | AT37: 64 | AU37: 75 | AV37: 70 | AW37: 61 | AX37: 74 | AY37: 75 | AZ37: 70 | BA37: 67 | BB37: 73 | BC37: 74 | BD37: 73 | BE37: 71 | BF37: 75 | BG37: 72 | BH37: 72 | BI37: 73 | BJ37: 72 | BK37: 66 | BL37: 67 | BM37: 73 | BN37: 74 | BO37: 73 | BP37: 67 | BQ37: 71 | BR37: 75 | BS37: 71 | BT37: 74 | BU37: 61 | BV37: 75 | BW37: 70 | BX37: 71 | BY37: 71 | BZ37: 71 | CA37: 70 | CB37: 71 | CC37: 75 | CD37: 72 | CE37: 73 | CF37: 74 | CG37: 64 | CH37: 74 | CI37: 64 | CJ37: 72 | CK37: 75 | CL37: 68 | CM37: 70 | CN37: 73 | CO37: 74 | CP37: 72 | CQ37: 69 | CR37: 71 | CS37: 75 | CT37: 71 | CU37: 64 | CV37: 63
A38: 72 | B38: 74 | C38: 74 | D38: 67 | E38: 72 | F38: 71 | G38: 71 | H38: 71 | I38: 71 | J38: 67 | K38: 74 | L38: 75 | M38: 71 | N38: 66 | O38: 68 | P38: 66 | Q38: 71 | R38: 62 | S38: 66 | T38: 66 | U38: 68 | V38: 71 | W38: 72 | X38: 66 | Y38: 73 | Z38: 71 | AA38: 63 | AB38: 73 | AC38: 73 | AD38: 72 | AE38: 70 | AF38: 74 | AG38: 74 | AH38: 73 | AI38: 75 | AJ38: 75 | AK38: 70 | AL38: 74 | AM38: 68 | AN38: 74 | AO38: 69 | AP38: 75 | AQ38: 67 | AR38: 75 | AS38: 71 | AT38: 64 | AU38: 71 | AV38: 68 | AW38: 74 | AX38: 71 | AY38: 65 | AZ38: 65 | BA38: 63 | BB38: 74 | BC38: 74 | BD38: 68 | BE38: 70 | BF38: 72 | BG38: 71 | BH38: 63 | BI38: 71 | BJ38: 65 | BK38: 75 | BL38: 67 | BM38: 75 | BN38: 63 | BO38: 69 | BP38: 65 | BQ38: 71 | BR38: 71 | BS38: 73 | BT38: 75 | BU38: 67 | BV38: 72 | BW38: 68 | BX38: 63 | BY38: 75 | BZ38: 73 | CA38: 65 | CB38: 71 | CC38: 68 | CD38: 74 | CE38: 74 | CF38: 62 | CG38: 73 | CH38: 71 | CI38: 73 | CJ38: 72 | CK38: 64 | CL38: 73 | CM38: 72 | CN38: 75 | CO38: 74 | CP38: 73 | CQ38: 75 | CR38: 65 | CS38: 62 | CT38: 74 | CU38: 72 | CV38: 66
A39: 72 | B39: 71 | C39: 68 | D39: 71 | E39: 73 | F39: 72 | G39: 72 | H39: 73 | I39: 72 | J39: 73 | K39: 71 | L39: 68 | M39: 75 | N39: 73 | O39: 71 | P39: 74 | Q39: 72 | R39: 71 | S39: 72 | T39: 67 | U39: 75 | V39: 69 | W39: 74 | X39: 73 | Y39: 75 | Z39: 63 | AA39: 69 | AB39: 70 | AC39: 71 | AD39: 67 | AE39: 74 | AF39: 71 | AG39: 69 | AH39: 71 | AI39: 75 | AJ39: 63 | AK39: 74 | AL39: 74 | AM39: 68 | AN39: 70 | AO39: 67 | AP39: 74 | AQ39: 72 | AR39: 69 | AS39: 65 | AT39: 68 | AU39: 73 | AV39: 71 | AW39: 71 | AX39: 73 | AY39: 65 | AZ39: 75 | BA39: 71 | BB39: 65 | BC39: 75 | BD39: 74 | BE39: 63 | BF39: 69 | BG39: 66 | BH39: 70 | BI39: 72 | BJ39: 68 | BK39: 63 | BL39: 69 | BM39: 68 | BN39: 75 | BO39: 75 | BP39: 74 | BQ39: 75 | BR39: 73 | BS39: 72 | BT39: 71 | BU39: 68 | BV39: 73 | BW39: 73 | BX39: 62 | BY39: 75 | BZ39: 73 | CA39: 75 | CB39: 67 | CC39: 75 | CD39: 75 | CE39: 66 | CF39: 73 | CG39: 65 | CH39: 75 | CI39: 75 | CJ39: 71 | CK39: 66 | CL39: 73 | CM39: 67 | CN39: 73 | CO39: 73 | CP39: 69 | CQ39: 66 | CR39: 75 | CS39: 69 | CT39: 74 | CU39: 75 | CV39: 74
A40: 73 | B40: 69 | C40: 70 | D40: 72 | E40: 75 | F40: 73 | G40: 74 | H40: 64 | I40: 72 | J40: 71 | K40: 75 | L40: 75 | M40: 74 | N40: 74 | O40: 64 | P40: 70 | Q40: 72 | R40: 75 | S40: 63 | T40: 73 | U40: 64 | V40: 71 | W40: 70 | X40: 73 | Y40: 69 | Z40: 75 | AA40: 66 | AB40: 74 | AC40: 69 | AD40: 74 | AE40: 72 | AF40: 70 | AG40: 71 | AH40: 72 | AI40: 71 | AJ40: 71 | AK40: 71 | AL40: 72 | AM40: 72 | AN40: 73 | AO40: 74 | AP40: 69 | AQ40: 74 | AR40: 68 | AS40: 69 | AT40: 73 | AU40: 75 | AV40: 74 | AW40: 73 | AX40: 75 | AY40: 75 | AZ40: 72 | BA40: 73 | BB40: 73 | BC40: 74 | BD40: 71 | BE40: 74 | BF40: 69 | BG40: 71 | BH40: 70 | BI40: 74 | BJ40: 72 | BK40: 73 | BL40: 71 | BM40: 73 | BN40: 75 | BO40: 70 | BP40: 64 | BQ40: 72 | BR40: 67 | BS40: 68 | BT40: 75 | BU40: 75 | BV40: 72 | BW40: 75 | BX40: 74 | BY40: 71 | BZ40: 72 | CA40: 71 | CB40: 75 | CC40: 69 | CD40: 71 | CE40: 69 | CF40: 75 | CG40: 73 | CH40: 75 | CI40: 73 | CJ40: 74 | CK40: 65 | CL40: 73 | CM40: 74 | CN40: 72 | CO40: 74 | CP40: 71 | CQ40: 71 | CR40: 72 | CS40: 71 | CT40: 72 | CU40: 66 | CV40: 75
A41: =sampx(pop, popsize,confLevel,NewSample) -> 73 | B41: 74 | C41: 62 | D41: 75 | E41: 73 | F41: 72 | G41: 73 | H41: 71 | I41: 71 | J41: 74 | K41: =sampx(pop, popsize,confLevel,NewSample) -> 71 | L41: 70 | M41: 74 | N41: 73 | O41: 68 | P41: 72 | Q41: 73 | R41: 63 | S41: 67 | T41: 68 | U41: =sampx(pop, popsize,confLevel,NewSample) -> 67 | V41: 74 | W41: 68 | X41: 75 | Y41: 74 | Z41: 75 | AA41: 70 | AB41: 71 | AC41: 72 | AD41: 72 | AE41: =sampx(pop, popsize,confLevel,NewSample) -> 71 | AF41: 72 | AG41: 75 | AH41: 67 | AI41: 65 | AJ41: 74 | AK41: 67 | AL41: 72 | AM41: 64 | AN41: 71 | AO41: =sampx(pop, popsize,confLevel,NewSample) -> 71 | AP41: 75 | AQ41: 68 | AR41: 73 | AS41: 65 | AT41: 74 | AU41: 73 | AV41: 70 | AW41: 67 | AX41: 68 | AY41: =sampx(pop, popsize,confLevel,NewSample) -> 74 | AZ41: 71 | BA41: 71 | BB41: 73 | BC41: 72 | BD41: 67 | BE41: 73 | BF41: 74 | BG41: 72 | BH41: 73 | BI41: =sampx(pop, popsize,confLevel,NewSample) -> 75 | BJ41: 72 | BK41: 73 | BL41: 71 | BM41: 70 | BN41: 71 | BO41: 75 | BP41: 74 | BQ41: 71 | BR41: 64 | BS41: =sampx(pop, popsize,confLevel,NewSample) -> 66 | BT41: 68 | BU41: 72 | BV41: 73 | BW41: 68 | BX41: 73 | BY41: 72 | BZ41: 71 | CA41: 69 | CB41: 69 | CC41: =sampx(pop, popsize,confLevel,NewSample) -> 75 | CD41: 73 | CE41: 72 | CF41: 71 | CG41: 73 | CH41: 74 | CI41: 71 | CJ41: 74 | CK41: 72 | CL41: 73 | CM41: =sampx(pop, popsize,confLevel,NewSample) -> 69 | CN41: 74 | CO41: 75 | CP41: 69 | CQ41: 75 | CR41: 64 | CS41: 71 | CT41: 71 | CU41: 71 | CV41: 70
A42: 75 | B42: 72 | C42: 68 | D42: 68 | E42: 70 | F42: 73 | G42: 67 | H42: 73 | I42: 65 | J42: 71 | K42: 72 | L42: 71 | M42: 71 | N42: 68 | O42: 64 | P42: 75 | Q42: 67 | R42: 65 | S42: 67 | T42: 72 | U42: 70 | V42: 74 | W42: 75 | X42: 70 | Y42: 74 | Z42: 75 | AA42: 73 | AB42: 72 | AC42: 75 | AD42: 71 | AE42: 75 | AF42: 68 | AG42: 73 | AH42: 68 | AI42: 73 | AJ42: 75 | AK42: 70 | AL42: 71 | AM42: 74 | AN42: 75 | AO42: 75 | AP42: 71 | AQ42: 75 | AR42: 64 | AS42: 73 | AT42: 71 | AU42: 73 | AV42: 74 | AW42: 71 | AX42: 62 | AY42: 73 | AZ42: 71 | BA42: 72 | BB42: 72 | BC42: 74 | BD42: 69 | BE42: 72 | BF42: 75 | BG42: 75 | BH42: 73 | BI42: 63 | BJ42: 73 | BK42: 72 | BL42: 71 | BM42: 75 | BN42: 69 | BO42: 74 | BP42: 69 | BQ42: 74 | BR42: 67 | BS42: 73 | BT42: 71 | BU42: 64 | BV42: 71 | BW42: 73 | BX42: 75 | BY42: 73 | BZ42: 71 | CA42: 71 | CB42: 73 | CC42: 69 | CD42: 66 | CE42: 75 | CF42: 73 | CG42: 74 | CH42: 73 | CI42: 69 | CJ42: 74 | CK42: 72 | CL42: 75 | CM42: 74 | CN42: 74 | CO42: 73 | CP42: 72 | CQ42: 74 | CR42: 63 | CS42: 73 | CT42: 75 | CU42: 73 | CV42: 69
A43: 69 | B43: 70 | C43: 70 | D43: 72 | E43: 74 | F43: 72 | G43: 63 | H43: 73 | I43: 72 | J43: 74 | K43: 72 | L43: 75 | M43: 73 | N43: 73 | O43: 73 | P43: 74 | Q43: 67 | R43: 73 | S43: 72 | T43: 75 | U43: 73 | V43: 73 | W43: 72 | X43: 75 | Y43: 71 | Z43: 75 | AA43: 65 | AB43: 71 | AC43: 75 | AD43: 75 | AE43: 75 | AF43: 72 | AG43: 70 | AH43: 68 | AI43: 71 | AJ43: 71 | AK43: 74 | AL43: 73 | AM43: 72 | AN43: 70 | AO43: 75 | AP43: 67 | AQ43: 72 | AR43: 67 | AS43: 72 | AT43: 72 | AU43: 74 | AV43: 72 | AW43: 73 | AX43: 73 | AY43: 75 | AZ43: 69 | BA43: 68 | BB43: 69 | BC43: 75 | BD43: 71 | BE43: 73 | BF43: 75 | BG43: 66 | BH43: 74 | BI43: 70 | BJ43: 69 | BK43: 72 | BL43: 73 | BM43: 74 | BN43: 68 | BO43: 71 | BP43: 69 | BQ43: 75 | BR43: 68 | BS43: 71 | BT43: 75 | BU43: 74 | BV43: 73 | BW43: 74 | BX43: 75 | BY43: 71 | BZ43: 72 | CA43: 75 | CB43: 73 | CC43: 65 | CD43: 75 | CE43: 71 | CF43: 70 | CG43: 68 | CH43: 73 | CI43: 74 | CJ43: 73 | CK43: 75 | CL43: 74 | CM43: 71 | CN43: 73 | CO43: 68 | CP43: 64 | CQ43: 73 | CR43: 71 | CS43: 73 | CT43: 64 | CU43: 72 | CV43: 74
A44: 62 | B44: 72 | C44: 61 | D44: 72 | E44: 63 | F44: 74 | G44: 70 | H44: 71 | I44: 75 | J44: 71 | K44: 73 | L44: 74 | M44: 72 | N44: 71 | O44: 63 | P44: 64 | Q44: 73 | R44: 75 | S44: 64 | T44: 71 | U44: 69 | V44: 74 | W44: 73 | X44: 71 | Y44: 62 | Z44: 75 | AA44: 72 | AB44: 75 | AC44: 64 | AD44: 71 | AE44: 65 | AF44: 69 | AG44: 73 | AH44: 71 | AI44: 64 | AJ44: 69 | AK44: 70 | AL44: 73 | AM44: 72 | AN44: 73 | AO44: 69 | AP44: 75 | AQ44: 69 | AR44: 72 | AS44: 73 | AT44: 73 | AU44: 70 | AV44: 75 | AW44: 75 | AX44: 71 | AY44: 70 | AZ44: 72 | BA44: 66 | BB44: 74 | BC44: 72 | BD44: 71 | BE44: 65 | BF44: 71 | BG44: 73 | BH44: 67 | BI44: 71 | BJ44: 73 | BK44: 72 | BL44: 75 | BM44: 71 | BN44: 71 | BO44: 69 | BP44: 71 | BQ44: 65 | BR44: 66 | BS44: 71 | BT44: 75 | BU44: 72 | BV44: 71 | BW44: 73 | BX44: 74 | BY44: 72 | BZ44: 69 | CA44: 73 | CB44: 74 | CC44: 63 | CD44: 63 | CE44: 71 | CF44: 71 | CG44: 74 | CH44: 72 | CI44: 73 | CJ44: 72 | CK44: 72 | CL44: 75 | CM44: 73 | CN44: 75 | CO44: 69 | CP44: 66 | CQ44: 70 | CR44: 69 | CS44: 74 | CT44: 64 | CU44: 72 | CV44: 67
A45: 75 | B45: 69 | C45: 72 | D45: 67 | E45: 72 | F45: 74 | G45: 75 | H45: 74 | I45: 75 | J45: 74 | K45: 71 | L45: 67 | M45: 62 | N45: 72 | O45: 68 | P45: 68 | Q45: 74 | R45: 73 | S45: 62 | T45: 74 | U45: 75 | V45: 72 | W45: 69 | X45: 71 | Y45: 67 | Z45: 62 | AA45: 72 | AB45: 70 | AC45: 63 | AD45: 74 | AE45: 74 | AF45: 72 | AG45: 73 | AH45: 71 | AI45: 74 | AJ45: 61 | AK45: 71 | AL45: 69 | AM45: 75 | AN45: 71 | AO45: 73 | AP45: 71 | AQ45: 72 | AR45: 73 | AS45: 75 | AT45: 69 | AU45: 74 | AV45: 62 | AW45: 72 | AX45: 63 | AY45: 70 | AZ45: 75 | BA45: 74 | BB45: 74 | BC45: 73 | BD45: 73 | BE45: 74 | BF45: 75 | BG45: 67 | BH45: 72 | BI45: 73 | BJ45: 72 | BK45: 71 | BL45: 73 | BM45: 74 | BN45: 73 | BO45: 64 | BP45: 75 | BQ45: 67 | BR45: 72 | BS45: 75 | BT45: 71 | BU45: 74 | BV45: 65 | BW45: 66 | BX45: 63 | BY45: 70 | BZ45: 73 | CA45: 72 | CB45: 72 | CC45: 73 | CD45: 75 | CE45: 74 | CF45: 70 | CG45: 75 | CH45: 71 | CI45: 74 | CJ45: 74 | CK45: 71 | CL45: 75 | CM45: 72 | CN45: 70 | CO45: 71 | CP45: 72 | CQ45: 66 | CR45: 70 | CS45: 72 | CT45: 74 | CU45: 70 | CV45: 73
A46: 73 | B46: 72 | C46: 65 | D46: 67 | E46: 69 | F46: 72 | G46: 75 | H46: 72 | I46: 74 | J46: 64 | K46: 69 | L46: 69 | M46: 73 | N46: 64 | O46: 71 | P46: 74 | Q46: 72 | R46: 71 | S46: 71 | T46: 73 | U46: 65 | V46: 70 | W46: 71 | X46: 73 | Y46: 70 | Z46: 75 | AA46: 74 | AB46: 75 | AC46: 68 | AD46: 75 | AE46: 62 | AF46: 65 | AG46: 63 | AH46: 75 | AI46: 70 | AJ46: 74 | AK46: 72 | AL46: 74 | AM46: 71 | AN46: 72 | AO46: 71 | AP46: 72 | AQ46: 73 | AR46: 75 | AS46: 70 | AT46: 73 | AU46: 65 | AV46: 72 | AW46: 70 | AX46: 72 | AY46: 74 | AZ46: 75 | BA46: 69 | BB46: 71 | BC46: 66 | BD46: 74 | BE46: 70 | BF46: 71 | BG46: 72 | BH46: 69 | BI46: 72 | BJ46: 64 | BK46: 72 | BL46: 72 | BM46: 71 | BN46: 67 | BO46: 74 | BP46: 75 | BQ46: 72 | BR46: 75 | BS46: 73 | BT46: 73 | BU46: 72 | BV46: 73 | BW46: 71 | BX46: 72 | BY46: 70 | BZ46: 74 | CA46: 73 | CB46: 70 | CC46: 75 | CD46: 69 | CE46: 72 | CF46: 73 | CG46: 73 | CH46: 65 | CI46: 73 | CJ46: 75 | CK46: 71 | CL46: 62 | CM46: 72 | CN46: 75 | CO46: 66 | CP46: 75 | CQ46: 72 | CR46: 63 | CS46: 71 | CT46: 73 | CU46: 73 | CV46: 71
A47: 72 | B47: 70 | C47: 74 | D47: 74 | E47: 73 | F47: 74 | G47: 74 | H47: 65 | I47: 66 | J47: 74 | K47: 70 | L47: 72 | M47: 75 | N47: 69 | O47: 75 | P47: 75 | Q47: 64 | R47: 75 | S47: 69 | T47: 72 | U47: 63 | V47: 68 | W47: 62 | X47: 70 | Y47: 72 | Z47: 73 | AA47: 73 | AB47: 73 | AC47: 75 | AD47: 74 | AE47: 73 | AF47: 73 | AG47: 66 | AH47: 64 | AI47: 71 | AJ47: 75 | AK47: 75 | AL47: 74 | AM47: 72 | AN47: 74 | AO47: 75 | AP47: 71 | AQ47: 75 | AR47: 73 | AS47: 63 | AT47: 75 | AU47: 64 | AV47: 72 | AW47: 70 | AX47: 62 | AY47: 69 | AZ47: 72 | BA47: 75 | BB47: 64 | BC47: 75 | BD47: 73 | BE47: 66 | BF47: 73 | BG47: 75 | BH47: 69 | BI47: 70 | BJ47: 72 | BK47: 72 | BL47: 72 | BM47: 75 | BN47: 72 | BO47: 73 | BP47: 73 | BQ47: 73 | BR47: 64 | BS47: 71 | BT47: 74 | BU47: 73 | BV47: 72 | BW47: 72 | BX47: 61 | BY47: 74 | BZ47: 71 | CA47: 71 | CB47: 73 | CC47: 72 | CD47: 71 | CE47: 75 | CF47: 71 | CG47: 66 | CH47: 74 | CI47: 73 | CJ47: 74 | CK47: 74 | CL47: 75 | CM47: 62 | CN47: 66 | CO47: 75 | CP47: 74 | CQ47: 75 | CR47: 75 | CS47: 71 | CT47: 71 | CU47: 72 | CV47: 73
A48: 75 | B48: 72 | C48: 72 | D48: 72 | E48: 71 | F48: 74 | G48: 64 | H48: 69 | I48: 67 | J48: 67 | K48: 68 | L48: 74 | M48: 69 | N48: 73 | O48: 72 | P48: 67 | Q48: 65 | R48: 75 | S48: 68 | T48: 69 | U48: 75 | V48: 69 | W48: 62 | X48: 64 | Y48: 71 | Z48: 71 | AA48: 72 | AB48: 72 | AC48: 73 | AD48: 75 | AE48: 68 | AF48: 69 | AG48: 75 | AH48: 74 | AI48: 70 | AJ48: 71 | AK48: 73 | AL48: 66 | AM48: 70 | AN48: 71 | AO48: 71 | AP48: 70 | AQ48: 74 | AR48: 74 | AS48: 65 | AT48: 71 | AU48: 65 | AV48: 75 | AW48: 72 | AX48: 75 | AY48: 75 | AZ48: 71 | BA48: 70 | BB48: 74 | BC48: 73 | BD48: 71 | BE48: 74 | BF48: 72 | BG48: 74 | BH48: 73 | BI48: 72 | BJ48: 73 | BK48: 75 | BL48: 64 | BM48: 71 | BN48: 75 | BO48: 71 | BP48: 63 | BQ48: 73 | BR48: 74 | BS48: 72 | BT48: 73 | BU48: 74 | BV48: 72 | BW48: 75 | BX48: 71 | BY48: 70 | BZ48: 71 | CA48: 75 | CB48: 69 | CC48: 74 | CD48: 70 | CE48: 73 | CF48: 71 | CG48: 69 | CH48: 67 | CI48: 64 | CJ48: 74 | CK48: 72 | CL48: 71 | CM48: 69 | CN48: 73 | CO48: 70 | CP48: 74 | CQ48: 72 | CR48: 73 | CS48: 71 | CT48: 69 | CU48: 74 | CV48: 73
A49: 73 | B49: 72 | C49: 72 | D49: 69 | E49: 71 | F49: 72 | G49: 70 | H49: 73 | I49: 75 | J49: 74 | K49: 67 | L49: 74 | M49: 71 | N49: 64 | O49: 73 | P49: 64 | Q49: 75 | R49: 71 | S49: 71 | T49: 71 | U49: 72 | V49: 73 | W49: 64 | X49: 71 | Y49: 71 | Z49: 72 | AA49: 72 | AB49: 74 | AC49: 65 | AD49: 63 | AE49: 73 | AF49: 64 | AG49: 73 | AH49: 72 | AI49: 74 | AJ49: 75 | AK49: 66 | AL49: 73 | AM49: 72 | AN49: 71 | AO49: 63 | AP49: 70 | AQ49: 75 | AR49: 75 | AS49: 71 | AT49: 65 | AU49: 75 | AV49: 75 | AW49: 67 | AX49: 74 | AY49: 74 | AZ49: 74 | BA49: 73 | BB49: 72 | BC49: 68 | BD49: 72 | BE49: 71 | BF49: 69 | BG49: 66 | BH49: 73 | BI49: 72 | BJ49: 69 | BK49: 74 | BL49: 65 | BM49: 72 | BN49: 75 | BO49: 64 | BP49: 74 | BQ49: 75 | BR49: 72 | BS49: 75 | BT49: 71 | BU49: 68 | BV49: 71 | BW49: 67 | BX49: 68 | BY49: 71 | BZ49: 65 | CA49: 70 | CB49: 71 | CC49: 68 | CD49: 74 | CE49: 75 | CF49: 72 | CG49: 73 | CH49: 75 | CI49: 72 | CJ49: 67 | CK49: 74 | CL49: 72 | CM49: 74 | CN49: 71 | CO49: 70 | CP49: 71 | CQ49: 75 | CR49: 72 | CS49: 75 | CT49: 74 | CU49: 71 | CV49: 71
A50: 72 | B50: 67 | C50: 74 | D50: 69 | E50: 72 | F50: 73 | G50: 69 | H50: 66 | I50: 71 | J50: 73 | K50: 74 | L50: 70 | M50: 68 | N50: 75 | O50: 71 | P50: 61 | Q50: 70 | R50: 70 | S50: 72 | T50: 64 | U50: 65 | V50: 74 | W50: 73 | X50: 65 | Y50: 74 | Z50: 73 | AA50: 69 | AB50: 69 | AC50: 74 | AD50: 74 | AE50: 74 | AF50: 75 | AG50: 74 | AH50: 65 | AI50: 72 | AJ50: 75 | AK50: 72 | AL50: 65 | AM50: 72 | AN50: 71 | AO50: 73 | AP50: 71 | AQ50: 71 | AR50: 74 | AS50: 64 | AT50: 75 | AU50: 74 | AV50: 73 | AW50: 71 | AX50: 71 | AY50: 74 | AZ50: 74 | BA50: 74 | BB50: 66 | BC50: 74 | BD50: 72 | BE50: 71 | BF50: 74 | BG50: 65 | BH50: 73 | BI50: 74 | BJ50: 74 | BK50: 70 | BL50: 70 | BM50: 75 | BN50: 72 | BO50: 67 | BP50: 71 | BQ50: 69 | BR50: 71 | BS50: 67 | BT50: 70 | BU50: 65 | BV50: 73 | BW50: 68 | BX50: 73 | BY50: 72 | BZ50: 70 | CA50: 68 | CB50: 72 | CC50: 72 | CD50: 67 | CE50: 72 | CF50: 71 | CG50: 73 | CH50: 70 | CI50: 72 | CJ50: 73 | CK50: 72 | CL50: 73 | CM50: 66 | CN50: 65 | CO50: 65 | CP50: 73 | CQ50: 73 | CR50: 72 | CS50: 66 | CT50: 72 | CU50: 70 | CV50: 73
A52: =AVERAGE(A1:A50) -> 71.32 | B52: 71.16 | C52: 71.2 | D52: 70.16 | E52: 71.28 | F52: 71.94 | G52: 69.78 | H52: 71.6 | I52: 71.58 | J52: 71.08 | K52: 71.14 | L52: =AVERAGE(L1:L50) -> 72.04 | M52: 71.82 | N52: 70.8 | O52: 70.58 | P52: 71 | Q52: 70.4 | R52: 71.26 | S52: 69.88 | T52: 71.24 | U52: 71.06 | V52: 71.16 | W52: 70.94 | X52: 71.7 | Y52: 70.84 | Z52: 71.4 | AA52: 71 | AB52: 71.9 | AC52: 70.22 | AD52: 71.68 | AE52: 71.14 | AF52: 70.94 | AG52: 71.12 | AH52: 70.1 | AI52: 71.74 | AJ52: 71.1 | AK52: 70.96 | AL52: =AVERAGE(AL1:AL50) -> 70.66 | AM52: 71.52 | AN52: 70.7 | AO52: 71.26 | AP52: 71.86 | AQ52: 71.44 | AR52: 71.26 | AS52: 70.58 | AT52: 70.94 | AU52: 70.92 | AV52: 71.4 | AW52: 71.18 | AX52: 70.92 | AY52: 71.9 | AZ52: 71.38 | BA52: 70.64 | BB52: 70.84 | BC52: 71.54 | BD52: 70.86 | BE52: 71.06 | BF52: 71.68 | BG52: 71.28 | BH52: 70.34 | BI52: 70.84 | BJ52: 70.56 | BK52: 71.34 | BL52: 71.76 | BM52: 71.84 | BN52: 71.04 | BO52: 71.14 | BP52: 71.04 | BQ52: 71.16 | BR52: 71.44 | BS52: 70.4 | BT52: 71.7 | BU52: 70.72 | BV52: 70.62 | BW52: 70.88 | BX52: 70.64 | BY52: 71.76 | BZ52: 70.92 | CA52: 70.94 | CB52: 71.04 | CC52: 71.08 | CD52: 71.76 | CE52: 71.06 | CF52: 71.32 | CG52: 70.74 | CH52: 71.48 | CI52: 70.96 | CJ52: 71.36 | CK52: 72 | CL52: 71.02 | CM52: 70.36 | CN52: 71.34 | CO52: 71.62 | CP52: 71.24 | CQ52: 71.42 | CR52: 70.26 | CS52: 71.56 | CT52: 71.62 | CU52: 70.86 | CV52: 70.94
A53: =STDEVA(A1:A50)/SQRT(50) -> 0.5025973355 | B53: =STDEVA(B1:B50)/SQRT(50) -> 0.4520790973 | C53: 0.4981598793 | D53: 0.5745344167 | E53: 0.4668959592 | F53: 0.4094894781 | G53: 0.5385467975 | H53: 0.4720774755 | I53: 0.4277038838 | J53: 0.5173243565 | K53: 0.4763894822 | L53: 0.3463630277 | M53: 0.4377027227 | N53: 0.4266624149 | O53: 0.5023130173 | P53: 0.5245017072 | Q53: 0.5103020314 | R53: 0.5305445797 | S53: 0.5327173313 | T53: 0.4620804771 | U53: 0.5302367588 | V53: 0.4327038861 | W53: 0.5224823012 | X53: 0.4465285602 | Y53: 0.4601330775 | Z53: 0.557692037 | AA53: 0.5198115828 | AB53: 0.3285714286 | AC53: 0.5040974962 | AD53: 0.406518318 | AE53: 0.5306984231 | AF53: 0.4575087821 | AG53: 0.5218804304 | AH53: 0.5400302335 | AI53: 0.4088909839 | AJ53: 0.5369984608 | AK53: 0.5005792563 | AL53: 0.4585781041 | AM53: 0.4391457384 | AN53: 0.5385164807 | AO53: 0.4396752048 | AP53: 0.3499387702 | AQ53: 0.4509943662 | AR53: 0.4359460742 | AS53: 0.5103740125 | AT53: 0.5090286869 | AU53: 0.4805099332 | AV53: 0.3927922024 | AW53: 0.4404913768 | AX53: 0.5366867364 | AY53: 0.5048742013 | AZ53: 0.4236768118 | BA53: 0.4744578001 | BB53: 0.520878379 | BC53: 0.4464919955 | BD53: 0.4535663667 | BE53: 0.4894061374 | BF53: 0.4628571429 | BG53: 0.4295607628 | BH53: 0.5387892701 | BI53: 0.4279614707 | BJ53: 0.5222869647 | BK53: 0.4811635557 | BL53: 0.4175340631 | BM53: 0.4438790054 | BN53: =STDEVA(BN1:BN50)/SQRT(50) -> 0.5022073724 | BO53: 0.5206040448 | BP53: 0.5118673297 | BQ53: 0.5232239151 | BR53: 0.4925236967 | BS53: 0.5182387756 | BT53: 0.4391550328 | BU53: 0.499828542 | BV53: 0.4217456434 | BW53: 0.4854116704 | BX53: 0.6380838663 | BY53: 0.3785687331 | BZ53: 0.460558667 | CA53: 0.5033844638 | CB53: 0.4471770868 | CC53: 0.5290268308 | CD53: 0.4664761516 | CE53: 0.5154035471 | CF53: 0.4308889719 | CG53: 0.5020854468 | CH53: 0.4661960698 | CI53: 0.5142539673 | CJ53: 0.4657756314 | CK53: 0.364775581 | CL53: 0.5674792094 | CM53: 0.4753172947 | CN53: 0.4441088302 | CO53: 0.4728463529 | CP53: 0.4751455201 | CQ53: 0.4491170476 | CR53: 0.5389407601 | CS53: 0.4296747702 | CT53: 0.4525573591 | CU53: 0.5883286601 | CV53: 0.4843763084

Sheet Sheet4
B1: x's | C1: =samples!A52-$H$25*samples!A53 -> 70.02832485 | D1: =samples!A52+$H$25*samples!A53 -> 72.61167515 | E1: =IF(OR(C1>ConfInts!$F$17,D1<ConfInts!$F$17),1,0) -> 0
B2: y's | C2: 1 | D2: 1
C3: =samples!B$52-$H$25*samples!B$53 -> 69.99815672 | D3: =samples!B$52+$H$25*samples!B$53 -> 72.32184328 | E3: =IF(OR(C3>ConfInts!$F$17,D3<ConfInts!$F$17),1,0) -> 0 | H3: For Pop'n Histogram
C4: 2 | D4: 2 | H4: Pop Freqs
C5: =samples!C$52-$H$25*samples!C$53 -> 69.91972911 | D5: =samples!C$52+$H$25*samples!C$53 -> 72.48027089 | E5: =IF(OR(C5>ConfInts!$F$17,D5<ConfInts!$F$17),1,0) -> 0 | H5: 61 | I5: =IF(pop=1,Sheet2!D5,IF(pop=2,Sheet2!F5,IF(pop=3,Sheet2!H5,Sheet2!J5))) -> 3
C6: 3 | D6: 3 | H6: 62 | I6: =IF(pop=1,Sheet2!D6,IF(pop=2,Sheet2!F6,IF(pop=3,Sheet2!H6,Sheet2!J6))) -> 5
C7: =samples!D$52-$H$25*samples!D$53 -> 68.68344655 | D7: =samples!D$52+$H$25*samples!D$53 -> 71.63655345 | E7: =IF(OR(C7>ConfInts!$F$17,D7<ConfInts!$F$17),1,0) -> 0 | H7: 63 | I7: =IF(pop=1,Sheet2!D7,IF(pop=2,Sheet2!F7,IF(pop=3,Sheet2!H7,Sheet2!J7))) -> 6
C8: 4 | D8: 4 | H8: 64 | I8: =IF(pop=1,Sheet2!D8,IF(pop=2,Sheet2!F8,IF(pop=3,Sheet2!H8,Sheet2!J8))) -> 15
B9: series 5 | C9: =samples!E$52-$H$25*samples!E$53 -> 70.08007738 | D9: =samples!E$52+$H$25*samples!E$53 -> 72.47992262 | E9: =IF(OR(C9>ConfInts!$F$17,D9<ConfInts!$F$17),1,0) -> 0 | H9: 65 | I9: =IF(pop=1,Sheet2!D9,IF(pop=2,Sheet2!F9,IF(pop=3,Sheet2!H9,Sheet2!J9))) -> 11
C10: 5 | D10: 5 | H10: 66 | I10: =IF(pop=1,Sheet2!D10,IF(pop=2,Sheet2!F10,IF(pop=3,Sheet2!H10,Sheet2!J10))) -> 10
B11: 14 | C11: =samples!F$52-$H$25*samples!F$53 -> 70.88761204 | D11: =samples!F$52+$H$25*samples!F$53 -> 72.99238796 | E11: =IF(OR(C11>ConfInts!$F$17,D11<ConfInts!$F$17),1,0) -> 0 | H11: 67 | I11: =IF(pop=1,Sheet2!D11,IF(pop=2,Sheet2!F11,IF(pop=3,Sheet2!H11,Sheet2!J11))) -> 15
C12: 6 | D12: 6 | H12: 68 | I12: =IF(pop=1,Sheet2!D12,IF(pop=2,Sheet2!F12,IF(pop=3,Sheet2!H12,Sheet2!J12))) -> 14
B13: 16 | C13: =samples!G$52-$H$25*samples!G$53 -> 68.39593473 | D13: =samples!G$52+$H$25*samples!G$53 -> 71.16406527 | E13: =IF(OR(C13>ConfInts!$F$17,D13<ConfInts!$F$17),1,0) -> 1 | H13: 69 | I13: =IF(pop=1,Sheet2!D13,IF(pop=2,Sheet2!F13,IF(pop=3,Sheet2!H13,Sheet2!J13))) -> 23
C14: 7 | D14: 7 | H14: 70 | I14: =IF(pop=1,Sheet2!D14,IF(pop=2,Sheet2!F14,IF(pop=3,Sheet2!H14,Sheet2!J14))) -> 20
B15: 18 | C15: =samples!H$52-$H$25*samples!H$53 -> 70.38676089 | D15: =samples!H$52+$H$25*samples!H$53 -> 72.81323911 | E15: =IF(OR(C15>ConfInts!$F$17,D15<ConfInts!$F$17),1,0) -> 0 | H15: 71 | I15: =IF(pop=1,Sheet2!D15,IF(pop=2,Sheet2!F15,IF(pop=3,Sheet2!H15,Sheet2!J15))) -> 54
C16: 8 | D16: 8 | H16: 72 | I16: =IF(pop=1,Sheet2!D16,IF(pop=2,Sheet2!F16,IF(pop=3,Sheet2!H16,Sheet2!J16))) -> 58
B17: 20 | C17: =samples!I$52-$H$25*samples!I$53 -> 70.48080102 | D17: =samples!I$52+$H$25*samples!I$53 -> 72.67919898 | E17: =IF(OR(C17>ConfInts!$F$17,D17<ConfInts!$F$17),1,0) -> 0 | H17: 73 | I17: =IF(pop=1,Sheet2!D17,IF(pop=2,Sheet2!F17,IF(pop=3,Sheet2!H17,Sheet2!J17))) -> 60
C18: 9 | D18: 9 | H18: 74 | I18: =IF(pop=1,Sheet2!D18,IF(pop=2,Sheet2!F18,IF(pop=3,Sheet2!H18,Sheet2!J18))) -> 54
B19: 22 | C19: =samples!J$52-$H$25*samples!J$53 -> 69.7504764 | D19: =samples!J$52+$H$25*samples!J$53 -> 72.4095236 | E19: =IF(OR(C19>ConfInts!$F$17,D19<ConfInts!$F$17),1,0) -> 0 | H19: 75 | I19: =IF(pop=1,Sheet2!D19,IF(pop=2,Sheet2!F19,IF(pop=3,Sheet2!H19,Sheet2!J19))) -> 62
C20: 10 | D20: 10
B21: 24 | C21: =samples!K$52-$H$25*samples!K$53 -> 69.91567903 | D21: =samples!K$52+$H$25*samples!K$53 -> 72.36432097 | E21: =IF(OR(C21>ConfInts!$F$17,D21<ConfInts!$F$17),1,0) -> 0 | F21: pop= | G21: =IF(pop=1,"normal",IF(pop=2,"uniform",IF(pop=3,"U-shaped","skewed"))) -> skewed
C22: 11 | D22: 11 | F22: pop n= | G22: =IF(pop=1, 210,IF(pop=2,424,IF(pop=3,397,410))) -> 410
B23: 26 | C23: =samples!L$52-$H$25*samples!L$53 -> 71.14984702 | D23: =samples!L$52+$H$25*samples!L$53 -> 72.93015298 | E23: =IF(OR(C23>ConfInts!$F$17,D23<ConfInts!$F$17),1,0) -> 0 | G23: =IF(pop=1, 210,IF(pop=2,424,IF(pop=3,397,410))) -> 410
C24: 12 | D24: 12 | G24: confLevel= | H24: =IF(ConfInts!D12=TRUE, 90,IF(ConfInts!D13=TRUE, 95,IF(ConfInts!D14=TRUE,98,99))) -> 99
B25: 28 | C25: =samples!M$52-$H$25*samples!M$53 -> 70.695104 | D25: =samples!M$52+$H$25*samples!M$53 -> 72.944896 | E25: =IF(OR(C25>ConfInts!$F$17,D25<ConfInts!$F$17),1,0) -> 0 | G25: z-value= | H25: =IF(ConfInts!D12=TRUE, 1.645,IF(ConfInts!D13=TRUE, 1.96,IF(ConfInts!D14=TRUE,2.33,2.57))) -> 2.57
C26: 13 | D26: 13
B27: 30 | C27: =samples!N$52-$H$25*samples!N$53 -> 69.70347759 | D27: =samples!N$52+$H$25*samples!N$53 -> 71.89652241 | E27: =IF(OR(C27>ConfInts!$F$17,D27<ConfInts!$F$17),1,0) -> 0 | F27: misses= | G27: =SUM(E1:E160) -> 1 | H27: =(80-G27)/80 -> 98.75%
C28: 14 | D28: 14 | F28: hits= | G28: =80-G27 -> 79
B29: 32 | C29: =samples!O$52-$H$25*samples!O$53 -> 69.28905555 | D29: =samples!O$52+$H$25*samples!O$53 -> 71.87094445 | E29: =IF(OR(C29>ConfInts!$F$17,D29<ConfInts!$F$17),1,0) -> 0
C30: 15 | D30: 15
B31: 34 | C31: =samples!P$52-$H$25*samples!P$53 -> 69.65203061 | D31: =samples!P$52+$H$25*samples!P$53 -> 72.34796939 | E31: =IF(OR(C31>ConfInts!$F$17,D31<ConfInts!$F$17),1,0) -> 0 | I31: New Sample = | K31: =IF(ConfInts!D25=TRUE,1,-1) -> -1
C32: 16 | D32: 16
B33: 36 | C33: =samples!Q$52-$H$25*samples!Q$53 -> 69.08852378 | D33: =samples!Q$52+$H$25*samples!Q$53 -> 71.71147622 | E33: =IF(OR(C33>ConfInts!$F$17,D33<ConfInts!$F$17),1,0) -> 0
C34: 17 | D34: 17
B35: 38 | C35: =samples!R$52-$H$25*samples!R$53 -> 69.89650043 | D35: =samples!R$52+$H$25*samples!R$53 -> 72.62349957 | E35: =IF(OR(C35>ConfInts!$F$17,D35<ConfInts!$F$17),1,0) -> 0
C36: 18 | D36: 18
B37: 40 | C37: =samples!S$52-$H$25*samples!S$53 -> 68.51091646 | D37: =samples!S$52+$H$25*samples!S$53 -> 71.24908354 | E37: =IF(OR(C37>ConfInts!$F$17,D37<ConfInts!$F$17),1,0) -> 0
C38: 19 | D38: 19
B39: 42 | C39: =samples!T$52-$H$25*samples!T$53 -> 70.05245317 | D39: =samples!T$52+$H$25*samples!T$53 -> 72.42754683 | E39: =IF(OR(C39>ConfInts!$F$17,D39<ConfInts!$F$17),1,0) -> 0
C40: 20 | D40: 20
B41: 44 | C41: =samples!U$52-$H$25*samples!U$53 -> 69.69729153 | D41: =samples!U$52+$H$25*samples!U$53 -> 72.42270847 | E41: =IF(OR(C41>ConfInts!$F$17,D41<ConfInts!$F$17),1,0) -> 0
C42: 21 | D42: 21
B43: 46 | C43: =samples!V$52-$H$25*samples!V$53 -> 70.04795101 | D43: =samples!V$52+$H$25*samples!V$53 -> 72.27204899 | E43: =IF(OR(C43>ConfInts!$F$17,D43<ConfInts!$F$17),1,0) -> 0
C44: 22 | D44: 22
B45: 48 | C45: =samples!W$52-$H$25*samples!W$53 -> 69.59722049 | D45: =samples!W$52+$H$25*samples!W$53 -> 72.28277951 | E45: =IF(OR(C45>ConfInts!$F$17,D45<ConfInts!$F$17),1,0) -> 0
C46: 23 | D46: 23
B47: 50 | C47: =samples!X$52-$H$25*samples!X$53 -> 70.5524216 | D47: =samples!X$52+$H$25*samples!X$53 -> 72.8475784 | E47: =IF(OR(C47>ConfInts!$F$17,D47<ConfInts!$F$17),1,0) -> 0
C48: 24 | D48: 24
B49: 52 | C49: =samples!Y$52-$H$25*samples!Y$53 -> 69.65745799 | D49: =samples!Y$52+$H$25*samples!Y$53 -> 72.02254201 | E49: =IF(OR(C49>ConfInts!$F$17,D49<ConfInts!$F$17),1,0) -> 0
C50: 25 | D50: 25
B51: 54 | C51: =samples!Z$52-$H$25*samples!Z$53 -> 69.96673146 | D51: =samples!Z$52+$H$25*samples!Z$53 -> 72.83326854 | E51: =IF(OR(C51>ConfInts!$F$17,D51<ConfInts!$F$17),1,0) -> 0
C52: 26 | D52: 26
B53: 56 | C53: =samples!AA$52-$H$25*samples!AA$53 -> 69.66408423 | D53: =samples!AA$52+$H$25*samples!AA$53 -> 72.33591577 | E53: =IF(OR(C53>ConfInts!$F$17,D53<ConfInts!$F$17),1,0) -> 0
C54: 27 | D54: 27
B55: 58 | C55: =samples!AB$52-$H$25*samples!AB$53 -> 71.05557143 | D55: =samples!AB$52+$H$25*samples!AB$53 -> 72.74442857 | E55: =IF(OR(C55>ConfInts!$F$17,D55<ConfInts!$F$17),1,0) -> 0
C56: 28 | D56: 28
B57: 60 | C57: =samples!AC$52-$H$25*samples!AC$53 -> 68.92446943 | D57: =samples!AC$52+$H$25*samples!AC$53 -> 71.51553057 | E57: =IF(OR(C57>ConfInts!$F$17,D57<ConfInts!$F$17),1,0) -> 0
C58: 29 | D58: 29
B59: 62 | C59: =samples!AD$52-$H$25*samples!AD$53 -> 70.63524792 | D59: =samples!AD$52+$H$25*samples!AD$53 -> 72.72475208 | E59: =IF(OR(C59>ConfInts!$F$17,D59<ConfInts!$F$17),1,0) -> 0
C60: 30 | D60: 30
B61: 64 | C61: =samples!AE$52-$H$25*samples!AE$53 -> 69.77610505 | D61: =samples!AE$52+$H$25*samples!AE$53 -> 72.50389495 | E61: =IF(OR(C61>ConfInts!$F$17,D61<ConfInts!$F$17),1,0) -> 0
C62: 31 | D62: 31
B63: 66 | C63: =samples!AF$52-$H$25*samples!AF$53 -> 69.76420243 | D63: =samples!AF$52+$H$25*samples!AF$53 -> 72.11579757 | E63: =IF(OR(C63>ConfInts!$F$17,D63<ConfInts!$F$17),1,0) -> 0
C64: 32 | D64: 32
B65: 68 | C65: =samples!AG$52-$H$25*samples!AG$53 -> 69.77876729 | D65: =samples!AG$52+$H$25*samples!AG$53 -> 72.46123271 | E65: =IF(OR(C65>ConfInts!$F$17,D65<ConfInts!$F$17),1,0) -> 0
C66: 33 | D66: 33
B67: 70 | C67: =samples!AH$52-$H$25*samples!AH$53 -> 68.7121223 | D67: =samples!AH$52+$H$25*samples!AH$53 -> 71.4878777 | E67: =IF(OR(C67>ConfInts!$F$17,D67<ConfInts!$F$17),1,0) -> 0
C68: 34 | D68: 34
B69: 72 | C69: =samples!AI$52-$H$25*samples!AI$53 -> 70.68915017 | D69: =samples!AI$52+$H$25*samples!AI$53 -> 72.79084983 | E69: =IF(OR(C69>ConfInts!$F$17,D69<ConfInts!$F$17),1,0) -> 0
C70: 35 | D70: 35
B71: 74 | C71: =samples!AJ$52-$H$25*samples!AJ$53 -> 69.71991396 | D71: =samples!AJ$52+$H$25*samples!AJ$53 -> 72.48008604 | E71: =IF(OR(C71>ConfInts!$F$17,D71<ConfInts!$F$17),1,0) -> 0
C72: 36 | D72: 36
B73: 76 | C73: =samples!AK$52-$H$25*samples!AK$53 -> 69.67351131 | D73: =samples!AK$52+$H$25*samples!AK$53 -> 72.24648869 | E73: =IF(OR(C73>ConfInts!$F$17,D73<ConfInts!$F$17),1,0) -> 0
C74: 37 | D74: 37
B75: 78 | C75: =samples!AL$52-$H$25*samples!AL$53 -> 69.48145427 | D75: =samples!AL$52+$H$25*samples!AL$53 -> 71.83854573 | E75: =IF(OR(C75>ConfInts!$F$17,D75<ConfInts!$F$17),1,0) -> 0
C76: 38 | D76: 38
B77: 80 | C77: =samples!AM$52-$H$25*samples!AM$53 -> 70.39139545 | D77: =samples!AM$52+$H$25*samples!AM$53 -> 72.64860455 | E77: =IF(OR(C77>ConfInts!$F$17,D77<ConfInts!$F$17),1,0) -> 0
C78: 39 | D78: 39
B79: 82 | C79: =samples!AN$52-$H$25*samples!AN$53 -> 69.31601264 | D79: =samples!AN$52+$H$25*samples!AN$53 -> 72.08398736 | E79: =IF(OR(C79>ConfInts!$F$17,D79<ConfInts!$F$17),1,0) -> 0
C80: 40 | D80: 40
B81: 84 | C81: =samples!AO$52-$H$25*samples!AO$53 -> 70.13003472 | D81: =samples!AO$52+$H$25*samples!AO$53 -> 72.38996528 | E81: =IF(OR(C81>ConfInts!$F$17,D81<ConfInts!$F$17),1,0) -> 0
C82: 41 | D82: 41
B83: 86 | C83: =samples!AP$52-$H$25*samples!AP$53 -> 70.96065736 | D83: =samples!AP$52+$H$25*samples!AP$53 -> 72.75934264 | E83: =IF(OR(C83>ConfInts!$F$17,D83<ConfInts!$F$17),1,0) -> 0
C84: 42 | D84: 42
B85: 88 | C85: =samples!AQ$52-$H$25*samples!AQ$53 -> 70.28094448 | D85: =samples!AQ$52+$H$25*samples!AQ$53 -> 72.59905552 | E85: =IF(OR(C85>ConfInts!$F$17,D85<ConfInts!$F$17),1,0) -> 0
C86: 43 | D86: 43
B87: 90 | C87: =samples!AR$52-$H$25*samples!AR$53 -> 70.13961859 | D87: =samples!AR$52+$H$25*samples!AR$53 -> 72.38038141 | E87: =IF(OR(C87>ConfInts!$F$17,D87<ConfInts!$F$17),1,0) -> 0
C88: 44 | D88: 44
B89: 92 | C89: =samples!AS$52-$H$25*samples!AS$53 -> 69.26833879 | D89: =samples!AS$52+$H$25*samples!AS$53 -> 71.89166121 | E89: =IF(OR(C89>ConfInts!$F$17,D89<ConfInts!$F$17),1,0) -> 0
C90: 45 | D90: 45
B91: 94 | C91: =samples!AT$52-$H$25*samples!AT$53 -> 69.63179627 | D91: =samples!AT$52+$H$25*samples!AT$53 -> 72.24820373 | E91: =IF(OR(C91>ConfInts!$F$17,D91<ConfInts!$F$17),1,0) -> 0
C92: 46 | D92: 46
B93: 96 | C93: =samples!AU$52-$H$25*samples!AU$53 -> 69.68508947 | D93: =samples!AU$52+$H$25*samples!AU$53 -> 72.15491053 | E93: =IF(OR(C93>ConfInts!$F$17,D93<ConfInts!$F$17),1,0) -> 0
C94: 47 | D94: 47
B95: 98 | C95: =samples!AV$52-$H$25*samples!AV$53 -> 70.39052404 | D95: =samples!AV$52+$H$25*samples!AV$53 -> 72.40947596 | E95: =IF(OR(C95>ConfInts!$F$17,D95<ConfInts!$F$17),1,0) -> 0
C96: 48 | D96: 48
B97: 100 | C97: =samples!AW$52-$H$25*samples!AW$53 -> 70.04793716 | D97: =samples!AW$52+$H$25*samples!AW$53 -> 72.31206284 | E97: =IF(OR(C97>ConfInts!$F$17,D97<ConfInts!$F$17),1,0) -> 0
C98: 49 | D98: 49
B99: 102 | C99: =samples!AX$52-$H$25*samples!AX$53 -> 69.54071509 | D99: =samples!AX$52+$H$25*samples!AX$53 -> 72.29928491 | E99: =IF(OR(C99>ConfInts!$F$17,D99<ConfInts!$F$17),1,0) -> 0
C100: 50 | D100: 50
B101: 104 | C101: =samples!AY$52-$H$25*samples!AY$53 -> 70.6024733 | D101: =samples!AY$52+$H$25*samples!AY$53 -> 73.1975267 | E101: =IF(OR(C101>ConfInts!$F$17,D101<ConfInts!$F$17),1,0) -> 0
C102: 51 | D102: 51
B103: 106 | C103: =samples!AZ$52-$H$25*samples!AZ$53 -> 70.29115059 | D103: =samples!AZ$52+$H$25*samples!AZ$53 -> 72.46884941 | E103: =IF(OR(C103>ConfInts!$F$17,D103<ConfInts!$F$17),1,0) -> 0
C104: 52 | D104: 52
B105: 108 | C105: =samples!BA$52-$H$25*samples!BA$53 -> 69.42064345 | D105: =samples!BA$52+$H$25*samples!BA$53 -> 71.85935655 | E105: =IF(OR(C105>ConfInts!$F$17,D105<ConfInts!$F$17),1,0) -> 0
C106: 53 | D106: 53
B107: 110 | C107: =samples!BB$52-$H$25*samples!BB$53 -> 69.50134257 | D107: =samples!BB$52+$H$25*samples!BB$53 -> 72.17865743 | E107: =IF(OR(C107>ConfInts!$F$17,D107<ConfInts!$F$17),1,0) -> 0
C108: 54 | D108: 54
B109: 112 | C109: =samples!BC$52-$H$25*samples!BC$53 -> 70.39251557 | D109: =samples!BC$52+$H$25*samples!BC$53 -> 72.68748443 | E109: =IF(OR(C109>ConfInts!$F$17,D109<ConfInts!$F$17),1,0) -> 0
C110: 55 | D110: 55
B111: 114 | C111: =samples!BD$52-$H$25*samples!BD$53 -> 69.69433444 | D111: =samples!BD$52+$H$25*samples!BD$53 -> 72.02566556 | E111: =IF(OR(C111>ConfInts!$F$17,D111<ConfInts!$F$17),1,0) -> 0
C112: 56 | D112: 56
B113: 116 | C113: =samples!BE$52-$H$25*samples!BE$53 -> 69.80222623 | D113: =samples!BE$52+$H$25*samples!BE$53 -> 72.31777377 | E113: =IF(OR(C113>ConfInts!$F$17,D113<ConfInts!$F$17),1,0) -> 0
C114: 57 | D114: 57
B115: 118 | C115: =samples!BF$52-$H$25*samples!BF$53 -> 70.49045714 | D115: =samples!BF$52+$H$25*samples!BF$53 -> 72.86954286 | E115: =IF(OR(C115>ConfInts!$F$17,D115<ConfInts!$F$17),1,0) -> 0
C116: 58 | D116: 58
B117: 120 | C117: =samples!BG$52-$H$25*samples!BG$53 -> 70.17602884 | D117: =samples!BG$52+$H$25*samples!BG$53 -> 72.38397116 | E117: =IF(OR(C117>ConfInts!$F$17,D117<ConfInts!$F$17),1,0) -> 0
C118: 59 | D118: 59
B119: 122 | C119: =samples!BH$52-$H$25*samples!BH$53 -> 68.95531158 | D119: =samples!BH$52+$H$25*samples!BH$53 -> 71.72468842 | E119: =IF(OR(C119>ConfInts!$F$17,D119<ConfInts!$F$17),1,0) -> 0
C120: 60 | D120: 60
B121: 124 | C121: =samples!BI$52-$H$25*samples!BI$53 -> 69.74013902 | D121: =samples!BI$52+$H$25*samples!BI$53 -> 71.93986098 | E121: =IF(OR(C121>ConfInts!$F$17,D121<ConfInts!$F$17),1,0) -> 0
C122: 61 | D122: 61
B123: 126 | C123: =samples!BJ$52-$H$25*samples!BJ$53 -> 69.2177225 | D123: =samples!BJ$52+$H$25*samples!BJ$53 -> 71.9022775 | E123: =IF(OR(C123>ConfInts!$F$17,D123<ConfInts!$F$17),1,0) -> 0
C124: 62 | D124: 62
B125: 128 | C125: =samples!BK$52-$H$25*samples!BK$53 -> 70.10340966 | D125: =samples!BK$52+$H$25*samples!BK$53 -> 72.57659034 | E125: =IF(OR(C125>ConfInts!$F$17,D125<ConfInts!$F$17),1,0) -> 0
C126: 63 | D126: 63
B127: 130 | C127: =samples!BL$52-$H$25*samples!BL$53 -> 70.68693746 | D127: =samples!BL$52+$H$25*samples!BL$53 -> 72.83306254 | E127: =IF(OR(C127>ConfInts!$F$17,D127<ConfInts!$F$17),1,0) -> 0
C128: 64 | D128: 64
B129: 132 | C129: =samples!BM$52-$H$25*samples!BM$53 -> 70.69923096 | D129: =samples!BM$52+$H$25*samples!BM$53 -> 72.98076904 | E129: =IF(OR(C129>ConfInts!$F$17,D129<ConfInts!$F$17),1,0) -> 0
C130: 65 | D130: 65
B131: 134 | C131: =samples!BN$52-$H$25*samples!BN$53 -> 69.74932705 | D131: =samples!BN$52+$H$25*samples!BN$53 -> 72.33067295 | E131: =IF(OR(C131>ConfInts!$F$17,D131<ConfInts!$F$17),1,0) -> 0
C132: 66 | D132: 66
B133: 136 | C133: =samples!BO$52-$H$25*samples!BO$53 -> 69.8020476 | D133: =samples!BO$52+$H$25*samples!BO$53 -> 72.4779524 | E133: =IF(OR(C133>ConfInts!$F$17,D133<ConfInts!$F$17),1,0) -> 0
C134: 67 | D134: 67
B135: 138 | C135: =samples!BP$52-$H$25*samples!BP$53 -> 69.72450096 | D135: =samples!BP$52+$H$25*samples!BP$53 -> 72.35549904 | E135: =IF(OR(C135>ConfInts!$F$17,D135<ConfInts!$F$17),1,0) -> 0
C136: 68 | D136: 68
B137: 140 | C137: =samples!BQ$52-$H$25*samples!BQ$53 -> 69.81531454 | D137: =samples!BQ$52+$H$25*samples!BQ$53 -> 72.50468546 | E137: =IF(OR(C137>ConfInts!$F$17,D137<ConfInts!$F$17),1,0) -> 0
C138: 69 | D138: 69
B139: 142 | C139: =samples!BR$52-$H$25*samples!BR$53 -> 70.1742141 | D139: =samples!BR$52+$H$25*samples!BR$53 -> 72.7057859 | E139: =IF(OR(C139>ConfInts!$F$17,D139<ConfInts!$F$17),1,0) -> 0
C140: 70 | D140: 70
B141: 144 | C141: =samples!BS$52-$H$25*samples!BS$53 -> 69.06812635 | D141: =samples!BS$52+$H$25*samples!BS$53 -> 71.73187365 | E141: =IF(OR(C141>ConfInts!$F$17,D141<ConfInts!$F$17),1,0) -> 0
C142: 71 | D142: 71
B143: 146 | C143: =samples!BT$52-$H$25*samples!BT$53 -> 70.57137157 | D143: =samples!BT$52+$H$25*samples!BT$53 -> 72.82862843 | E143: =IF(OR(C143>ConfInts!$F$17,D143<ConfInts!$F$17),1,0) -> 0
C144: 72 | D144: 72
B145: 148 | C145: =samples!BU$52-$H$25*samples!BU$53 -> 69.43544065 | D145: =samples!BU$52+$H$25*samples!BU$53 -> 72.00455935 | E145: =IF(OR(C145>ConfInts!$F$17,D145<ConfInts!$F$17),1,0) -> 0
C146: 73 | D146: 73
B147: 150 | C147: =samples!BV$52-$H$25*samples!BV$53 -> 69.5361137 | D147: =samples!BV$52+$H$25*samples!BV$53 -> 71.7038863 | E147: =IF(OR(C147>ConfInts!$F$17,D147<ConfInts!$F$17),1,0) -> 0
C148: 74 | D148: 74
B149: 152 | C149: =samples!BW$52-$H$25*samples!BW$53 -> 69.63249201 | D149: =samples!BW$52+$H$25*samples!BW$53 -> 72.12750799 | E149: =IF(OR(C149>ConfInts!$F$17,D149<ConfInts!$F$17),1,0) -> 0
C150: 75 | D150: 75
B151: 154 | C151: =samples!BX$52-$H$25*samples!BX$53 -> 69.00012446 | D151: =samples!BX$52+$H$25*samples!BX$53 -> 72.27987554 | E151: =IF(OR(C151>ConfInts!$F$17,D151<ConfInts!$F$17),1,0) -> 0
C152: 76 | D152: 76
B153: 156 | C153: =samples!BY$52-$H$25*samples!BY$53 -> 70.78707836 | D153: =samples!BY$52+$H$25*samples!BY$53 -> 72.73292164 | E153: =IF(OR(C153>ConfInts!$F$17,D153<ConfInts!$F$17),1,0) -> 0
C154: 77 | D154: 77
B155: 158 | C155: =samples!BZ$52-$H$25*samples!BZ$53 -> 69.73636423 | D155: =samples!BZ$52+$H$25*samples!BZ$53 -> 72.10363577 | E155: =IF(OR(C155>ConfInts!$F$17,D155<ConfInts!$F$17),1,0) -> 0
C156: 78 | D156: 78
B157: 160 | C157: =samples!CA$52-$H$25*samples!CA$53 -> 69.64630193 | D157: =samples!CA$52+$H$25*samples!CA$53 -> 72.23369807 | E157: =IF(OR(C157>ConfInts!$F$17,D157<ConfInts!$F$17),1,0) -> 0
C158: 79 | D158: 79
B159: 162 | C159: =samples!CB$52-$H$25*samples!CB$53 -> 69.89075489 | D159: =samples!CB$52+$H$25*samples!CB$53 -> 72.18924511 | E159: =IF(OR(C159>ConfInts!$F$17,D159<ConfInts!$F$17),1,0) -> 0
C160: 80 | D160: 80
E161: =IF(OR(C161>ConfInts!$F$17,D161<ConfInts!$F$17),1,0) -> 1
E163: =IF(OR(C163>ConfInts!$F$17,D163<ConfInts!$F$17),1,0) -> 1
E165: =IF(OR(C165>ConfInts!$F$17,D165<ConfInts!$F$17),1,0) -> 1
E167: =IF(OR(C167>ConfInts!$F$17,D167<ConfInts!$F$17),1,0) -> 1
E169: =IF(OR(C169>ConfInts!$F$17,D169<ConfInts!$F$17),1,0) -> 1
E171: =IF(OR(C171>ConfInts!$F$17,D171<ConfInts!$F$17),1,0) -> 1
E173: =IF(OR(C173>ConfInts!$F$17,D173<ConfInts!$F$17),1,0) -> 1
E175: =IF(OR(C175>ConfInts!$F$17,D175<ConfInts!$F$17),1,0) -> 1
E177: =IF(OR(C177>ConfInts!$F$17,D177<ConfInts!$F$17),1,0) -> 1
E179: =IF(OR(C179>ConfInts!$F$17,D179<ConfInts!$F$17),1,0) -> 1
E181: =IF(OR(C181>ConfInts!$F$17,D181<ConfInts!$F$17),1,0) -> 1
E183: =IF(OR(C183>ConfInts!$F$17,D183<ConfInts!$F$17),1,0) -> 1
E185: =IF(OR(C185>ConfInts!$F$17,D185<ConfInts!$F$17),1,0) -> 1
E187: =IF(OR(C187>ConfInts!$F$17,D187<ConfInts!$F$17),1,0) -> 1
E189: =IF(OR(C189>ConfInts!$F$17,D189<ConfInts!$F$17),1,0) -> 1
E191: =IF(OR(C191>ConfInts!$F$17,D191<ConfInts!$F$17),1,0) -> 1
E193: =IF(OR(C193>ConfInts!$F$17,D193<ConfInts!$F$17),1,0) -> 1
E195: =IF(OR(C195>ConfInts!$F$17,D195<ConfInts!$F$17),1,0) -> 1
E197: =IF(OR(C197>ConfInts!$F$17,D197<ConfInts!$F$17),1,0) -> 1
E199: =IF(OR(C199>ConfInts!$F$17,D199<ConfInts!$F$17),1,0) -> 1
C201: =ConfInts!F17 -> 71.19 | D201: =ConfInts!F17 -> 71.19
C202: 0.00 | D202: 80
